Workbook

Sheet Gennaio
A1: GENNAIO
B2: 1 | C2: 2 | D2: 3 | E2: 4 | F2: 5 | G2: 6 | H2: 7 | I2: 8 | J2: 9 | K2: 10 | L2: 11 | M2: 12 | N2: 13 | O2: 14 | P2: 15 | Q2: 16 | R2: 17 | S2: 18 | T2: 19 | U2: 20 | V2: 21 | W2: 22 | X2: 23 | Y2: 24 | Z2: 25 | AA2: 26 | AB2: 27 | AC2: 28 | AD2: 29 | AE2: 30 | AF2: 31
A4: ='Riepilogo Annuale'!A4 -> Esselunga | C4: =0.82+0.54+0.9-0.91 -> 1.35 | D4: =0.77+0.54+0.9-0.34-0.02 -> 1.85 | E4: =2.95+2.95+0.81+0.54+0.54-1.62-0.01 -> 6.16 | F4: =2.99+5.98-2.99+0.78+0.54+0.54+2.99-0.03 -> 10.8 | G4: =2.95+7.98-3.99+0.54+0.54+0.78-0.04 -> 8.76 | H4: =2.95+2.95+0.78-0.03 -> 6.65 | I4: =6.65-3.33+6.65-3.33+0.77-0.01 -> 7.4 | J4: =2.73+6.65-3.33+6.65-3.33-0.02 -> 9.35 | K4: =0.79+6.65-3.33-0.01 -> 4.1 | L4: =0.81+0.54+6.65-3.33-0.01 -> 4.66 | M4: =0.77+0.54+0.54+6.65-3.33+6.65-3.33-0.04 -> 8.45 | N4: =0.77+0.54-0.01 -> 1.3 | O4: =0.8+0.54+0.54+6.65-3.33 -> 5.2 | P4: =0.73+0.54+0.54+0.54+1.33-0.03 -> 3.65 | Q4: =0.74+1.33+1.33 -> 3.4 | R4: =1.33+0.76-0.04 -> 2.05 | S4: =1.33+0.54+0.54+0.54+0.79-0.04 -> 3.7 | T4: =0.82-0.02 -> 0.8 | U4: =0.8 -> 0.8 | V4: =0.81+0.54+0.54-0.02 -> 1.87 | W4: =0.78+0.54+1.33 -> 2.65 | X4: =0.8+0.77-0.02 -> 1.55 | Y4: =0.83+0.54-0.02 -> 1.35 | Z4: =0.79+0.54-0.02 -> 1.31 | AA4: =0.81+0.54+1.33-0.03 -> 2.65 | AB4: =1.33+0.75-0.03 -> 2.05 | AC4: =2.45+2.56+0.54+1.33-0.03 -> 6.85 | AD4: =0.75+1.46-0.59+2.18+0.77+1.33 -> 5.9 | AE4: =0.54+0.54+0.54+0.78+0.75-0.04 -> 3.11 | AF4: =0.79+0.54+0.54+0.54+1.33-0.04 -> 3.7 | AG4: =SUM(B4:AF4) -> 123.42
A5: ='Riepilogo Annuale'!A5 -> Penny Market | P5: 1.99 | AG5: =SUM(B5:AF5) -> 1.99
A6: ='Riepilogo Annuale'!A6 -> 0 | AG6: =SUM(B6:AF6) -> 0
A7: ='Riepilogo Annuale'!A7 -> Mercato | AG7: =SUM(B7:AF7) -> 0
A8: ='Riepilogo Annuale'!A8 -> Altro (pizza, kebab, ...) | N8: 1 | P8: =0.7+0.4+0.45 -> 1.55 | AA8: 1.4 | AG8: =SUM(B8:AF8) -> 3.95
A9: =IF( AND(ISNUMBER('Riepilogo Annuale'!O2),YEAR(TODAY())='Riepilogo Annuale'!O2,MONTH(TODAY())=1), AG9/DAY(TODAY()), AG9/AF2 ) -> 4.172903226 | AG9: =SUM(AG4:AG8) -> 129.36
A11: ='Riepilogo Annuale'!A11 -> Amazon (elettronica, mus. mp3, ...) | G11: =43.99+1.29 -> 45.28 | K11: =2.58+7.69+10.99+7.99 -> 29.25 | N11: 6.2 | P11: =1.29+1.29+1.29 -> 3.87 | Q11: =1.29+1.29+14.29+1.29+1.29+1.19+1.29+1.19+1.29+1.29+1.29+1.19+1.29+1.29+1.19 -> 31.95 | S11: =1.29+1.29+1.29 -> 3.87 | V11: =10.99+7.8+1.29+1.29+1.29 -> 22.66 | W11: 1.19 | Y11: =79.99+1.19+1.19+24.99+9.99+11.92 -> 129.27 | Z11: 10.99 | AG11: 284.53
A12: ='Riepilogo Annuale'!A12 -> Hardware & Software | AG12: =SUM(B12:AF12) -> 0
A13: ='Riepilogo Annuale'!A13 -> Nuovi elettrodom., lamp. led, ... | AG13: =SUM(B13:AF13) -> 0
A14: ='Riepilogo Annuale'!A14 -> 0 | AG14: =SUM(B14:AF14) -> 0
A15: ='Riepilogo Annuale'!A15 -> Altro (spese Webank, Aruba, ...) | G15: 1 | Y15: =1 -> 1 | AC15: 1 | AG15: =SUM(B15:AF15) -> 3
A16: =IF( AND(ISNUMBER('Riepilogo Annuale'!O2),YEAR(TODAY())='Riepilogo Annuale'!O2,MONTH(TODAY())=1), AG16/DAY(TODAY()), AG16/AF2 ) -> 9.27516129 | AG16: =SUM(AG11:AG15) -> 287.53
A18: ='Riepilogo Annuale'!A18 -> Generi non alim. (sapone, ...) | C18: =3.75+1.55-0.24-0.01 -> 5.05 | E18: =2.99 -> 2.99 | G18: 2.99 | L18: 2.99 | Q18: 0.1 | S18: 0.1 | V18: =2.99+2.99+2.5 -> 8.48 | Z18: 2.99 | AE18: 2.99 | AG18: 28.68
A19: ='Riepilogo Annuale'!A19 -> Parrucchiere | S19: 20 | AG19: =SUM(B19:AF19) -> 20
A20: ='Riepilogo Annuale'!A20 -> Abbigliamento (Bonprix, Zalando, ...) | V20: 133.98 | Y20: 119.6 | AC20: 126.79 | AG20: =SUM(B20:AF20) -> 380.37
A21: ='Riepilogo Annuale'!A21 -> Cartoleria e libri | AG21: =SUM(B21:AF21) -> 0
A22: ='Riepilogo Annuale'!A22 -> Altro (spese mediche, ...) | AG22: =SUM(B22:AF22) -> 0
A23: =IF( AND(ISNUMBER('Riepilogo Annuale'!O2),YEAR(TODAY())='Riepilogo Annuale'!O2,MONTH(TODAY())=1), AG23/DAY(TODAY()), AG23/AF2 ) -> 13.84032258 | AG23: =SUM(AG18:AG22) -> 429.05
A25: ='Riepilogo Annuale'!A25 -> Elettricità | AG25: 0
A26: ='Riepilogo Annuale'!A26 -> Gas | AG26: =SUM(B26:AF26) -> 0
A27: ='Riepilogo Annuale'!A27 -> Connessione fibra + cellulare | V27: 34.89 | AG27: =SUM(B27:AF27) -> 34.89
A28: ='Riepilogo Annuale'!A28 -> Spese condominiali | AG28: =SUM(B28:AF28) -> 0
A29: ='Riepilogo Annuale'!A29 -> Altro (tassa rifiuti, ...) | AG29: =SUM(B29:AF29) -> 0
A30: =IF( AND(ISNUMBER('Riepilogo Annuale'!O2),YEAR(TODAY())='Riepilogo Annuale'!O2,MONTH(TODAY())=1), AG30/DAY(TODAY()), AG30/AF2 ) -> 1.125483871 | AG30: =SUM(AG25:AG29) -> 34.89
A32: ='Riepilogo Annuale'!A32 -> Benzina e A.T.M. | B32: 60 | T32: 4.8 | X32: 65.03 | AG32: 129.83
A33: ='Riepilogo Annuale'!A33 -> Spese e manutenzione automobile | AG33: =SUM(B33:AF33) -> 0
A34: ='Riepilogo Annuale'!A34 -> Spese ripar. casa (idraulico, ...) | AG34: =SUM(B34:AF34) -> 0
A35: ='Riepilogo Annuale'!A35 -> 0 | AG35: =SUM(B35:AF35) -> 0
A36: ='Riepilogo Annuale'!A36 -> Altro | AG36: =SUM(B36:AF36) -> 0
A37: =IF( AND(ISNUMBER('Riepilogo Annuale'!O2),YEAR(TODAY())='Riepilogo Annuale'!O2,MONTH(TODAY())=1), AG37/DAY(TODAY()), AG37/AF2 ) -> 4.188064516 | AG37: =SUM(AG32:AG36) -> 129.83

Sheet Febbraio
A1: FEBBRAIO
B2: 1 | C2: 2 | D2: 3 | E2: 4 | F2: 5 | G2: 6 | H2: 7 | I2: 8 | J2: 9 | K2: 10 | L2: 11 | M2: 12 | N2: 13 | O2: 14 | P2: 15 | Q2: 16 | R2: 17 | S2: 18 | T2: 19 | U2: 20 | V2: 21 | W2: 22 | X2: 23 | Y2: 24 | Z2: 25 | AA2: 26 | AB2: 27 | AC2: 28 | AD2: =IF(MOD(YEAR(TODAY()),4)=0,29,"") -> 
A4: ='Riepilogo Annuale'!A4 -> Esselunga | B4: =0.78+0.54+1.33 -> 2.65 | C4: =0.75+0.54+0.54+1.33-0.01 -> 3.15 | D4: =0.54+1.33+0.79-0.01 -> 2.65 | F4: =0.79+0.54+0.54+0.54+0.54+0.54+1.33-0.02 -> 4.8 | G4: =0.73+0.54+1.33-0.04 -> 2.56 | H4: =0.77+0.54+0.54+1.33-0.03 -> 3.15 | I4: =0.76+0.54+1.33-0.02 -> 2.61 | J4: =0.8+0.54+0.54+1.33-0.01 -> 3.2 | K4: =1.24+2.8+0.54+0.54+1.33 -> 6.45 | L4: =0.54+0.54+1.33+0.79 -> 3.2 | M4: =0.54+0.54+0.54+2.74+1.88+1.33-0.02 -> 7.55 | N4: =0.79+0.54+0.54+1.33 -> 3.2 | O4: =0.81+0.54+0.54+1.33-0.02 -> 3.2 | Q4: =0.54+0.54+0.54+0.85+1.33-0.03 -> 3.77 | R4: =0.81+0.54+1.33-0.03 -> 2.65 | T4: =1.53+0.54+0.54+1.33-0.04 -> 3.9 | V4: =1.64+0.54+0.9-0.03 -> 3.05 | W4: =0.54+1.68+1.33-0.04 -> 3.51 | X4: =1.85+0.54-0.04 -> 2.35 | Z4: =0.85+2.89+0.22+0.22-0.03 -> 4.15 | AA4: =9.99-0.04+6.99+9.8+0.51+1.25 -> 28.5 | AB4: =1.97+0.22+0.22+1.98+2.83-0.02 -> 7.2 | AG4: =SUM(B4:AF4) -> 107.45
A5: ='Riepilogo Annuale'!A5 -> Penny Market | T5: =0.85+2.49 -> 3.34 | U5: =1.59+0.85+1.99+0.85+0.95+1.29+2.69 -> 10.21 | X5: =2.49+0.25 -> 2.74 | Y5: =2.39+1.89+0.65+0.65 -> 5.58 | AG5: 21.87
A6: ='Riepilogo Annuale'!A6 -> 0 | AG6: 0
A7: ='Riepilogo Annuale'!A7 -> Mercato | AG7: 0
A8: ='Riepilogo Annuale'!A8 -> Altro (pizza, kebab, ...) | K8: =6+1 -> 7 | L8: 6 | M8: 6 | T8: =0.7+0.7+0.7 -> 2.1 | U8: 13 | Z8: =6+0.4+0.7+0.7+0.7 -> 8.5 | AA8: =6+0.7 -> 6.7 | AG8: 49.3
A9: =IF( AND(ISNUMBER('Riepilogo Annuale'!O2),YEAR(TODAY())='Riepilogo Annuale'!O2,MONTH(TODAY())=2), AG9/DAY(TODAY()), IF(MOD(YEAR(TODAY()),4)=0,AG9/AD2,AG9/AC2) ) -> 6.379285714 | AG9: =SUM(AG4:AG8) -> 178.62
A11: ='Riepilogo Annuale'!A11 -> Amazon (elettronica, mus. mp3, ...) | AG11: 0
A12: ='Riepilogo Annuale'!A12 -> Hardware & Software | AB12: 69.99 | AG12: 69.99
A13: ='Riepilogo Annuale'!A13 -> Nuovi elettrodom., lamp. led, ... | AG13: 0
A14: ='Riepilogo Annuale'!A14 -> 0 | AG14: 0
A15: ='Riepilogo Annuale'!A15 -> Altro (spese Webank, Aruba, ...) | X15: 63.42 | AG15: 63.42
A16: =IF( AND(ISNUMBER('Riepilogo Annuale'!O2),YEAR(TODAY())='Riepilogo Annuale'!O2,MONTH(TODAY())=2), AG16/DAY(TODAY()), IF(MOD(YEAR(TODAY()),4)=0,AG16/AD2,AG16/AC2) ) -> 4.764642857 | AG16: =SUM(AG11:AG15) -> 133.41
A18: ='Riepilogo Annuale'!A18 -> Generi non alim. (sapone, ...) | G18: 2.99 | I18: =2.9+2.99 -> 5.89 | M18: 0.1 | Q18: =2.99+2.99 -> 5.98 | W18: 2.99 | Y18: 4.95 | AG18: 22.9
A19: ='Riepilogo Annuale'!A19 -> Parrucchiere | AG19: 0
A20: ='Riepilogo Annuale'!A20 -> Abbigliamento (Bonprix, Zalando, ...) | AG20: 0
A21: ='Riepilogo Annuale'!A21 -> Cartoleria e libri | AG21: 0
A22: ='Riepilogo Annuale'!A22 -> Altro (spese mediche, ...) | AG22: 0
A23: =IF( AND(ISNUMBER('Riepilogo Annuale'!O2),YEAR(TODAY())='Riepilogo Annuale'!O2,MONTH(TODAY())=2), AG23/DAY(TODAY()), IF(MOD(YEAR(TODAY()),4)=0,AG23/AD2,AG23/AC2) ) -> 0.8178571429 | AG23: =SUM(AG18:AG22) -> 22.9
A25: ='Riepilogo Annuale'!A25 -> Elettricità | B25: 20.27 | AG25: 20.27
A26: ='Riepilogo Annuale'!A26 -> Gas | AG26: 0
A27: ='Riepilogo Annuale'!A27 -> Connessione fibra + cellulare | V27: 28.89 | AG27: 28.89
A28: ='Riepilogo Annuale'!A28 -> Spese condominiali | AG28: 0
A29: ='Riepilogo Annuale'!A29 -> Altro (tassa rifiuti, ...) | AG29: 0
A30: =IF( AND(ISNUMBER('Riepilogo Annuale'!O2),YEAR(TODAY())='Riepilogo Annuale'!O2,MONTH(TODAY())=2), AG30/DAY(TODAY()), IF(MOD(YEAR(TODAY()),4)=0,AG30/AD2,AG30/AC2) ) -> 1.755714286 | AG30: =SUM(AG25:AG29) -> 49.16
A32: ='Riepilogo Annuale'!A32 -> Benzina e A.T.M. | K32: 60 | AG32: 60
A33: ='Riepilogo Annuale'!A33 -> Spese e manutenzione automobile | AA33: 252.58 | AC33: 127.23 | AG33: 379.81
A34: ='Riepilogo Annuale'!A34 -> Spese ripar. casa (idraulico, ...) | AG34: 0
A35: ='Riepilogo Annuale'!A35 -> 0 | AG35: 0
A36: ='Riepilogo Annuale'!A36 -> Altro | AG36: 0
A37: =IF( AND(ISNUMBER('Riepilogo Annuale'!O2),YEAR(TODAY())='Riepilogo Annuale'!O2,MONTH(TODAY())=2), AG37/DAY(TODAY()), IF(MOD(YEAR(TODAY()),4)=0,AG37/AD2,AG37/AC2) ) -> 15.7075 | AG37: =SUM(AG32:AG36) -> 439.81

Sheet Marzo
A1: MARZO
B2: 1 | C2: 2 | D2: 3 | E2: 4 | F2: 5 | G2: 6 | H2: 7 | I2: 8 | J2: 9 | K2: 10 | L2: 11 | M2: 12 | N2: 13 | O2: 14 | P2: 15 | Q2: 16 | R2: 17 | S2: 18 | T2: 19 | U2: 20 | V2: 21 | W2: 22 | X2: 23 | Y2: 24 | Z2: 25 | AA2: 26 | AB2: 27 | AC2: 28 | AD2: 29 | AE2: 30 | AF2: 31
A4: ='Riepilogo Annuale'!A4 -> Esselunga | B4: =0.54+0.54+1.33-0.01 -> 2.4 | E4: =1.82+0.51-0.01 -> 2.32 | G4: =1.84+1.55+0.5+1.33-0.02 -> 5.2 | H4: =2.12+0.5+1.33-0.04 -> 3.91 | I4: =1.76+1.76+3.89+1.33+0.51+9.9+9.9+0.51+0.51+1.98 -> 32.05 | L4: =2.12+0.51+0.51+0.51-0.04+1.98-0.03 -> 5.56 | M4: =0.51+0.51+0.51+0.51-0.04 -> 2 | N4: =1.35+0.51-0.01 -> 1.85 | T4: =1.98+0.97 -> 2.95 | U4: =2.98+1.49+2.03+0.65+1.29+1.56+0.5+0.62-0.02 -> 11.1 | V4: =2.03+1.05+1.35+2.99-0.01 -> 7.41 | W4: =1.06+2.99+1.35+2.03-0.03 -> 7.4 | X4: =2.03+2.99+1.05+1.35-0.02 -> 7.4 | Y4: =2.03+2.99+0.98+1.35 -> 7.35 | Z4: =2.03+2.99+1.05+1.35-0.01 -> 7.41 | AA4: =2.49+2.03+2.99+1.08+1.35-0.04 -> 9.9 | AB4: =2.69+2.2+2.99+0.96+1.18-0.02 -> 10 | AC4: =2.69+2.2+2.03+2.69+1.03+2.99+1.35-0.01 -> 14.97 | AD4: =2.03+2.99+1.09+1.35-0.01 -> 7.45 | AE4: =2.69+2.99+1.14+1.35-0.02 -> 8.15 | AF4: =2.69+1.09+2.99+1.35-0.02 -> 8.1 | AG4: =SUM(B4:AF4) -> 164.88
A5: ='Riepilogo Annuale'!A5 -> Penny Market | C5: =2.39+0.65+0.65+0.19+2.69+1.89+1.59 -> 10.05 | K5: =2.49+2.69+0.85 -> 6.03 | L5: 2.69 | M5: =1.49+0.85+2.49+2.69 -> 7.52 | N5: =2.49+2.69+1.49-0.8 -> 5.87 | O5: =0.85*3+1.49-0.8+2.49+2.69 -> 8.42 | P5: =0.25+0.25+2.39+0.65+0.65+2.49 -> 6.68 | R5: =1.49-0.8+1.79+0.85+0.19+2.49 -> 6.01 | S5: =0.25+0.25+2.49+0.85+0.85+1.49-0.8 -> 5.38 | T5: =1.79+2.49+0.85*3 -> 6.83 | AA5: =0.85 -> 0.85 | AD5: =0.85+0.85+2.49 -> 4.19 | AG5: 70.52
A6: ='Riepilogo Annuale'!A6 -> 0 | AG6: 0
A7: ='Riepilogo Annuale'!A7 -> Mercato | AG7: 0
A8: ='Riepilogo Annuale'!A8 -> Altro (pizza, kebab, ...) | B8: 8 | C8: 1 | F8: =0.7+0.7+0.9 -> 2.3 | I8: =6+0.4+0.4+0.65+0.7 -> 8.15 | K8: =0.7+0.7 -> 1.4 | L8: =0.65+0.7+0.4+6 -> 7.75 | M8: 0.8 | O8: 1 | P8: =6.25+0.17 -> 6.42 | Q8: =10.2+0.7 -> 10.9 | R8: =8.5 -> 8.5 | U8: =1.2+1.2+0.7+0.7+0.7+1.5 -> 6 | X8: =6 -> 6 | AC8: 1 | AE8: 0.7 | AG8: 69.92
A9: =IF( AND(ISNUMBER('Riepilogo Annuale'!O2),YEAR(TODAY())='Riepilogo Annuale'!O2,MONTH(TODAY())=3), AG9/DAY(TODAY()), AG9/AF2 ) -> 9.849032258 | AG9: =SUM(AG4:AG8) -> 305.32
A11: ='Riepilogo Annuale'!A11 -> Amazon (elettronica, mus. mp3, ...) | AG11: 0
A12: ='Riepilogo Annuale'!A12 -> Hardware & Software | G12: 19.99 | AG12: 19.99
A13: ='Riepilogo Annuale'!A13 -> Nuovi elettrodom., lamp. led, ... | AG13: 0
A14: ='Riepilogo Annuale'!A14 -> 0 | AG14: 0
A15: ='Riepilogo Annuale'!A15 -> Altro (spese Webank, Aruba, ...) | AF15: 3.6 | AG15: 3.6
A16: =IF( AND(ISNUMBER('Riepilogo Annuale'!O2),YEAR(TODAY())='Riepilogo Annuale'!O2,MONTH(TODAY())=3), AG16/DAY(TODAY()), AG16/AF2 ) -> 0.7609677419 | AG16: =SUM(AG11:AG15) -> 23.59
A18: ='Riepilogo Annuale'!A18 -> Generi non alim. (sapone, ...) | E18: =2.99+2.99 -> 5.98 | H18: 2.99 | I18: =15+0.1 -> 15.1 | L18: 2.99 | U18: 0.85 | V18: 2.99 | Z18: 2.99 | AC18: =2.99+2.99 -> 5.98 | AD18: 0.1 | AG18: 39.97
A19: ='Riepilogo Annuale'!A19 -> Parrucchiere | AF19: 21 | AG19: 21
A20: ='Riepilogo Annuale'!A20 -> Abbigliamento (Bonprix, Zalando, ...) | AG20: 0
A21: ='Riepilogo Annuale'!A21 -> Cartoleria e libri | AG21: 0
A22: ='Riepilogo Annuale'!A22 -> Altro (spese mediche, ...) | AG22: 0
A23: =IF( AND(ISNUMBER('Riepilogo Annuale'!O2),YEAR(TODAY())='Riepilogo Annuale'!O2,MONTH(TODAY())=3), AG23/DAY(TODAY()), AG23/AF2 ) -> 1.966774194 | AG23: =SUM(AG18:AG22) -> 60.97
A25: ='Riepilogo Annuale'!A25 -> Elettricità | H25: 21.02 | AG25: 21.02
A26: ='Riepilogo Annuale'!A26 -> Gas | AG26: 0
A27: ='Riepilogo Annuale'!A27 -> Connessione fibra + cellulare | C27: 9.99 | Y27: 28.89 | AE27: 9.99 | AG27: 48.87
A28: ='Riepilogo Annuale'!A28 -> Spese condominiali | AF28: 775.03 | AG28: 775.03
A29: ='Riepilogo Annuale'!A29 -> Altro (tassa rifiuti, ...) | AG29: 0
A30: =IF( AND(ISNUMBER('Riepilogo Annuale'!O2),YEAR(TODAY())='Riepilogo Annuale'!O2,MONTH(TODAY())=3), AG30/DAY(TODAY()), AG30/AF2 ) -> 27.25548387 | AG30: =SUM(AG25:AG29) -> 844.92
A32: ='Riepilogo Annuale'!A32 -> Benzina e A.T.M. | C32: 70 | M32: 45 | AG32: 115
A33: ='Riepilogo Annuale'!A33 -> Spese e manutenzione automobile | AG33: 0
A34: ='Riepilogo Annuale'!A34 -> Spese ripar. casa (idraulico, ...) | AG34: 0
A35: ='Riepilogo Annuale'!A35 -> 0 | AG35: 0
A36: ='Riepilogo Annuale'!A36 -> Altro | M36: 6.5 | AG36: 6.5
A37: =IF( AND(ISNUMBER('Riepilogo Annuale'!O2),YEAR(TODAY())='Riepilogo Annuale'!O2,MONTH(TODAY())=3), AG37/DAY(TODAY()), AG37/AF2 ) -> 3.919354839 | AG37: =SUM(AG32:AG36) -> 121.5

Sheet Aprile
A1: APRILE
B2: 1 | C2: 2 | D2: 3 | E2: 4 | F2: 5 | G2: 6 | H2: 7 | I2: 8 | J2: 9 | K2: 10 | L2: 11 | M2: 12 | N2: 13 | O2: 14 | P2: 15 | Q2: 16 | R2: 17 | S2: 18 | T2: 19 | U2: 20 | V2: 21 | W2: 22 | X2: 23 | Y2: 24 | Z2: 25 | AA2: 26 | AB2: 27 | AC2: 28 | AD2: 29 | AE2: 30
A4: ='Riepilogo Annuale'!A4 -> Esselunga | B4: =2.69+2.99+1.17+1.35-0.01 -> 8.19 | C4: =2.69+2.99+1.08+1.35-0.01 -> 8.1 | D4: =2.69+2.99+1.03+1.35+1.55-0.01 -> 9.6 | E4: =2.69+2.99+1.05+1.55-0.02 -> 8.26 | F4: =2.42+2.99+1.04+1.55-0.03 -> 7.97 | G4: =2.42+2.99+1.1+1.55+1.55 -> 9.61 | H4: =8.49+2.99+1.04+1.55-0.02 -> 14.05 | I4: =1.09+1.14+1.16+1.55*3 -> 8.04 | L4: =2.42+2.99+1.05+1.55-0.01 -> 8 | M4: =8.49+2.42+2.99+1.08+1.55*3-0.03 -> 19.6 | N4: =1.1+1.55 -> 2.65 | O4: =2.99+0.19+0.19+1.05-0.02 -> 4.4 | P4: =0.19+0.99+3.99-1.2-0.02 -> 3.95 | Q4: =8.49+2.63+2.42+2.42+2.42+2.42+4.99+2.48+0.79+1.05+1.07+1.14+3.99-1.2+1.28-0.04+0.19+0.19+3.99-1.2+3.99-1.2+0.83-0.04 -> 43.1 | R4: =1+0.19+0.19+3.99-1.2+0.83+2.42-0.02 -> 7.4 | T4: =1.05+3.99-1.2-0.04 -> 3.8 | U4: =1.1+0.83+3.99-0.02 -> 5.9 | V4: =2.42+2.42+2.28+3.99-0.01 -> 11.1 | W4: =9.9+1.06+0.57+1.55-0.03 -> 13.05 | X4: =0.99+3.99-0.03+4.41-0.89+3.99+1.55-0.01 -> 14 | Y4: =4.41-0.89+3.99+1.55-0.01+1.31+4.41-0.89+3.65+1.55+3.99+1.55-0.02 -> 24.6 | Z4: =1.04+3.99+4.98-0.01 -> 10 | AA4: =2.28+1.28-0.01 -> 3.55 | AB4: =1.34+3.99-0.03 -> 5.3 | AC4: =4.41-0.89+9.9+0.53+4.28-1.29+3.99-0.03 -> 20.9 | AD4: =2.74+1.02+0.01-0.02 -> 3.75 | AE4: =1.56+0.51+4.28-1.29+3.99+2.28+1.24+1.24-0.01 -> 13.8 | AG4: =SUM(B4:AF4) -> 292.67
A5: ='Riepilogo Annuale'!A5 -> Penny Market | L5: =2.49+2.49 -> 4.98 | O5: 2.49 | V5: =0.85+1.29+1.29 -> 3.43 | AC5: 6.63 | AG5: 17.53
A6: ='Riepilogo Annuale'!A6 -> 0 | AG6: 0
A7: ='Riepilogo Annuale'!A7 -> Mercato | AG7: 0
A8: ='Riepilogo Annuale'!A8 -> Altro (pizza, kebab, ...) | C8: 0.4 | F8: 1 | G8: 1 | K8: 1 | N8: 3.7 | P8: =6+0.7+2.1+2.1+0.4 -> 11.3 | R8: =1+0.7 -> 1.7 | W8: =1+1+0.4 -> 2.4 | X8: 9 | Y8: =1.9+1 -> 2.9 | Z8: =0.4 -> 0.4 | AA8: =0.4+0.4+9+0.7+0.7 -> 11.2 | AB8: =0.55+1+1+1+9+1+0.9 -> 14.45 | AC8: =7+1.5+1.5+1.2+1 -> 12.2 | AE8: =10+1.9+2.1+0.7 -> 14.7 | AG8: 87.35
A9: =IF( AND(ISNUMBER('Riepilogo Annuale'!O2),YEAR(TODAY())='Riepilogo Annuale'!O2,MONTH(TODAY())=4), AG9/DAY(TODAY()), AG9/AE2 ) -> 13.25166667 | AG9: =SUM(AG4:AG8) -> 397.55
A11: ='Riepilogo Annuale'!A11 -> Amazon (elettronica, mus. mp3, ...) | Q11: =10.99+10.99+9.99+9.99 -> 41.96 | R11: 8.99 | T11: 13.99 | V11: =10.99+20.39+14.99 -> 46.37 | AB11: =1.19+1.19+4.49+1.29+13+10.99+15.09+1.29+1.29+1.29+1.29 -> 52.4 | AC11: =1.29+9.99+2.58 -> 13.86 | AE11: =8.99+8.99+10.99+1.99+2.58+1.29+7.99+1.99 -> 44.81 | AG11: 222.38
A12: ='Riepilogo Annuale'!A12 -> Hardware & Software | L12: 69.99 | Q12: 99.99 | AG12: 169.98
A13: ='Riepilogo Annuale'!A13 -> Nuovi elettrodom., lamp. led, ... | AG13: 0
A14: ='Riepilogo Annuale'!A14 -> 0 | AG14: 0
A15: ='Riepilogo Annuale'!A15 -> Altro (spese Webank, Aruba, ...) | Q15: 1 | V15: 1 | AG15: 2
A16: =IF( AND(ISNUMBER('Riepilogo Annuale'!O2),YEAR(TODAY())='Riepilogo Annuale'!O2,MONTH(TODAY())=4), AG16/DAY(TODAY()), AG16/AE2 ) -> 13.14533333 | AG16: =SUM(AG11:AG15) -> 394.36
A18: ='Riepilogo Annuale'!A18 -> Generi non alim. (sapone, ...) | B18: =1.99+2.99+1.15+2.99+2.29+0.1 -> 11.51 | E18: 2.99 | F18: =2.99+2.99 -> 5.98 | G18: 2.99 | L18: =28.9+19.9 -> 48.8 | M18: 24.9 | Y18: 0.1 | Z18: 0.1 | AG18: 97.37
A19: ='Riepilogo Annuale'!A19 -> Parrucchiere | AG19: 0
A20: ='Riepilogo Annuale'!A20 -> Abbigliamento (Bonprix, Zalando, ...) | AG20: 0
A21: ='Riepilogo Annuale'!A21 -> Cartoleria e libri | AG21: 0
A22: ='Riepilogo Annuale'!A22 -> Altro (spese mediche, ...) | I22: 13.9 | M22: 13.9 | AG22: 27.8
A23: =IF( AND(ISNUMBER('Riepilogo Annuale'!O2),YEAR(TODAY())='Riepilogo Annuale'!O2,MONTH(TODAY())=4), AG23/DAY(TODAY()), AG23/AE2 ) -> 4.172333333 | AG23: =SUM(AG18:AG22) -> 125.17
A25: ='Riepilogo Annuale'!A25 -> Elettricità | C25: 20.55 | AG25: 20.55
A26: ='Riepilogo Annuale'!A26 -> Gas | T26: 75.91 | AG26: 75.91
A27: ='Riepilogo Annuale'!A27 -> Connessione fibra + cellulare | V27: 28.89 | AD27: 9.99 | AG27: 38.88
A28: ='Riepilogo Annuale'!A28 -> Spese condominiali | AG28: 0
A29: ='Riepilogo Annuale'!A29 -> Altro (tassa rifiuti, ...) | AG29: 0
A30: =IF( AND(ISNUMBER('Riepilogo Annuale'!O2),YEAR(TODAY())='Riepilogo Annuale'!O2,MONTH(TODAY())=4), AG30/DAY(TODAY()), AG30/AE2 ) -> 4.511333333 | AG30: =SUM(AG25:AG29) -> 135.34
A32: ='Riepilogo Annuale'!A32 -> Benzina e A.T.M. | D32: 60 | AC32: 70 | AG32: 130
A33: ='Riepilogo Annuale'!A33 -> Spese e manutenzione automobile | AG33: 0
A34: ='Riepilogo Annuale'!A34 -> Spese ripar. casa (idraulico, ...) | AG34: 0
A35: ='Riepilogo Annuale'!A35 -> 0 | AG35: 0
A36: ='Riepilogo Annuale'!A36 -> Altro | AG36: 0
A37: =IF( AND(ISNUMBER('Riepilogo Annuale'!O2),YEAR(TODAY())='Riepilogo Annuale'!O2,MONTH(TODAY())=4), AG37/DAY(TODAY()), AG37/AE2 ) -> 4.333333333 | AG37: =SUM(AG32:AG36) -> 130

Sheet Maggio
A1: MAGGIO
B2: 1 | C2: 2 | D2: 3 | E2: 4 | F2: 5 | G2: 6 | H2: 7 | I2: 8 | J2: 9 | K2: 10 | L2: 11 | M2: 12 | N2: 13 | O2: 14 | P2: 15 | Q2: 16 | R2: 17 | S2: 18 | T2: 19 | U2: 20 | V2: 21 | W2: 22 | X2: 23 | Y2: 24 | Z2: 25 | AA2: 26 | AB2: 27 | AC2: 28 | AD2: 29 | AE2: 30 | AF2: 31
A4: ='Riepilogo Annuale'!A4 -> Esselunga | C4: =1.53+1.24-0.02 -> 2.75 | D4: =1.6+1.24-0.03 -> 2.81 | E4: =1.97-1.78+1.97-1.78+1.24+1.64-0.01 -> 3.25 | F4: =1.51+1.24+4.22+2.51+3.99-0.02 -> 13.45 | G4: =1.97-0.79+2.49+1.57+1.24+1.24-0.02 -> 7.7 | K4: =2.49+1.56 -> 4.05 | L4: =1.41+1.24+1.24-0.04 -> 3.85 | M4: =1.35+1.55 -> 2.9 | N4: =1.98-0.99+1.32-0.04 -> 2.27 | O4: =1.98+1.32+0.41+1.55+1.55-0.01 -> 6.8 | P4: =1.29+1.29+9.9+1.3+1.55+0.36-0.03 -> 15.66 | Q4: =1.37+1.55-0.02 -> 2.9 | R4: =1.44+1.55+1.55-0.04+1.55+4.18+3.69-1.11+9.9+3.69-1.11-0.04 -> 25.25 | S4: =1.3+0.49+1.55+1.75+6.29-0.03 -> 11.35 | T4: =1.75+1.28+0.39+1.55-0.02 -> 4.95 | U4: =1.46+0.41+1.55-0.02 -> 3.4 | V4: =3.65+1.2+0.59+4.99+1.79-0.02+3.84-1.54+3.35-1.34+3.99+1.55 -> 22.05 | W4: =1.4+0.39+1.55-0.04 -> 3.3 | X4: =1.97-0.79+1.36+1.55-0.04 -> 4.05 | Y4: =1.37+0.36+1.55+1.55-0.03 -> 4.8 | Z4: =6.29+1.97+0.46+4.4+1.55-0.02 -> 14.65 | AA4: =1.97+1.55+1.55-0.02 -> 5.05 | AB4: =1.97+1.55+1.55-0.02 -> 5.05 | AC4: =1.97+1.55+1.55-0.02 -> 5.05 | AD4: =1.55+1.99+1.21 -> 4.75 | AF4: =1.99+1.55+1.55+0.19-0.03 -> 5.25 | AG4: =SUM(B4:AF4) -> 187.34
A5: ='Riepilogo Annuale'!A5 -> Penny Market | H5: 8 | I5: =0.85+0.69+1.99+1.09+1.89+2.39+0.69+0.69 -> 10.28 | V5: =0.32+2.69 -> 3.01 | Z5: =1.32+1.19+1.09+1.49+0.59 -> 5.68 | AA5: =2.49 -> 2.49 | AB5: =2.49 -> 2.49 | AC5: =2.49 -> 2.49 | AE5: =1.99+1.09+1.39+1.39+2.39+1.89-0.3+1.39+2.69+0.69+0.69+1.17+0.85 -> 17.32 | AF5: =0.67+1.39+1.89+2.69+0.85+1.39 -> 8.88 | AG5: 60.64
A6: ='Riepilogo Annuale'!A6 -> 0 | AG6: 0
A7: ='Riepilogo Annuale'!A7 -> Mercato | AG7: 0
A8: ='Riepilogo Annuale'!A8 -> Altro (pizza, kebab, ...) | F8: =6+1+1.2 -> 8.2 | G8: =4+6 -> 10 | H8: =0.7+0.9+1+1.9 -> 4.5 | I8: =5+0.9+0.7 -> 6.6 | J8: =4+1 -> 5 | K8: =4+1 -> 5 | U8: =4+4+1+0.9+0.7+1.6+0.7 -> 12.9 | Y8: 8 | Z8: 9 | AC8: =0.9+0.9+0.9+0.7+4+7 -> 14.4 | AD8: =4+6+3.5 -> 13.5 | AF8: 1 | AG8: 98.1
A9: =IF( AND(ISNUMBER('Riepilogo Annuale'!O2),YEAR(TODAY())='Riepilogo Annuale'!O2,MONTH(TODAY())=5), AG9/DAY(TODAY()), AG9/AF2 ) -> 11.16387097 | AG9: =SUM(AG4:AG8) -> 346.08
A11: ='Riepilogo Annuale'!A11 -> Amazon (elettronica, mus. mp3, ...) | G11: =6.99+9.9+1.19+14.99 -> 33.07 | I11: 15.87 | J11: =8.99+10.99 -> 19.98 | K11: =8.7+8.99+9.99+9.99+8.99+29.99+1.29+9.99+0.99 -> 88.92 | V11: =0.99+0.99+0.99 -> 2.97 | AG11: 160.81
A12: ='Riepilogo Annuale'!A12 -> Hardware & Software | K12: 230.37 | AG12: 230.37
A13: ='Riepilogo Annuale'!A13 -> Nuovi elettrodom., lamp. led, ... | AG13: 0
A14: ='Riepilogo Annuale'!A14 -> 0 | AG14: 0
A15: ='Riepilogo Annuale'!A15 -> Altro (spese Webank, Aruba, ...) | AG15: 0
A16: =IF( AND(ISNUMBER('Riepilogo Annuale'!O2),YEAR(TODAY())='Riepilogo Annuale'!O2,MONTH(TODAY())=5), AG16/DAY(TODAY()), AG16/AF2 ) -> 12.61870968 | AG16: =SUM(AG11:AG15) -> 391.18
A18: ='Riepilogo Annuale'!A18 -> Generi non alim. (sapone, ...) | D18: 2.99 | N18: 0.68 | P18: 3.19 | AG18: 6.86
A19: ='Riepilogo Annuale'!A19 -> Parrucchiere | AG19: 0
A20: ='Riepilogo Annuale'!A20 -> Abbigliamento (Bonprix, Zalando, ...) | AG20: 0
A21: ='Riepilogo Annuale'!A21 -> Cartoleria e libri | AG21: 0
A22: ='Riepilogo Annuale'!A22 -> Altro (spese mediche, ...) | AG22: 0
A23: =IF( AND(ISNUMBER('Riepilogo Annuale'!O2),YEAR(TODAY())='Riepilogo Annuale'!O2,MONTH(TODAY())=5), AG23/DAY(TODAY()), AG23/AF2 ) -> 0.2212903226 | AG23: =SUM(AG18:AG22) -> 6.86
A25: ='Riepilogo Annuale'!A25 -> Elettricità | G25: 20.55 | AC25: 20.24 | AG25: 40.79
A26: ='Riepilogo Annuale'!A26 -> Gas | AG26: 0
A27: ='Riepilogo Annuale'!A27 -> Connessione fibra + cellulare | W27: 28.89 | AG27: 28.89
A28: ='Riepilogo Annuale'!A28 -> Spese condominiali | AG28: 0
A29: ='Riepilogo Annuale'!A29 -> Altro (tassa rifiuti, ...) | AG29: 0
A30: =IF( AND(ISNUMBER('Riepilogo Annuale'!O2),YEAR(TODAY())='Riepilogo Annuale'!O2,MONTH(TODAY())=5), AG30/DAY(TODAY()), AG30/AF2 ) -> 2.247741935 | AG30: =SUM(AG25:AG29) -> 69.68
A32: ='Riepilogo Annuale'!A32 -> Benzina e A.T.M. | V32: 50 | AG32: 50
A33: ='Riepilogo Annuale'!A33 -> Spese e manutenzione automobile | S33: 100 | AG33: 100
A34: ='Riepilogo Annuale'!A34 -> Spese ripar. casa (idraulico, ...) | T34: 60 | AG34: 60
A35: ='Riepilogo Annuale'!A35 -> 0 | AG35: 0
A36: ='Riepilogo Annuale'!A36 -> Altro | AG36: 0
A37: =IF( AND(ISNUMBER('Riepilogo Annuale'!O2),YEAR(TODAY())='Riepilogo Annuale'!O2,MONTH(TODAY())=5), AG37/DAY(TODAY()), AG37/AF2 ) -> 6.774193548 | AG37: =SUM(AG32:AG36) -> 210

Sheet Giugno
A1: GIUGNO
B2: 1 | C2: 2 | D2: 3 | E2: 4 | F2: 5 | G2: 6 | H2: 7 | I2: 8 | J2: 9 | K2: 10 | L2: 11 | M2: 12 | N2: 13 | O2: 14 | P2: 15 | Q2: 16 | R2: 17 | S2: 18 | T2: 19 | U2: 20 | V2: 21 | W2: 22 | X2: 23 | Y2: 24 | Z2: 25 | AA2: 26 | AB2: 27 | AC2: 28 | AD2: 29 | AE2: 30
A4: ='Riepilogo Annuale'!A4 -> Esselunga | D4: =1.99+1.94-0.03 -> 3.9 | E4: =1.99+1.55-0.04 -> 3.5 | F4: =0.25+1.28+1.55+1.55+2.15-0.03 -> 6.75 | K4: 3.1 | M4: =1.75+1.45+4.4+1.55 -> 9.15 | N4: =2.29+3.99+1.45+1.55-0.03 -> 9.25 | AB4: =3.99-1.2+1.55-0.04 -> 4.3 | AC4: =1.75+2.01+3.99-1.2+1.55 -> 8.1 | AD4: =1.43+3.99-1.2-0.02 -> 4.2 | AE4: =1.87+3.99-1.2-0.01 -> 4.65 | AG4: =SUM(B4:AF4) -> 56.9
A5: ='Riepilogo Annuale'!A5 -> Penny Market | C5: =0.85+1.39+1.39+2.69 -> 6.32 | F5: =1.89+1.49+2.69+0.94+0.69 -> 7.7 | G5: =0.69+1.27+1.09+1.49+1.99+2.69 -> 9.22 | H5: 8.05 | I5: 8.81 | J5: 7.3 | K5: 7.27 | L5: =1.39+1.99+2.69+0.69+0.67 -> 7.43 | O5: =1.69+3.99+2.09+1.39 -> 9.16 | P5: =0.49+1.69+0.69+1.39+2.69 -> 6.95 | Q5: 1.69 | R5: =1.69+2.69 -> 4.38 | S5: =0.69+1.69+1.39-0.3+2.69 -> 6.16 | T5: =1.69+1.39+0.69+2.69 -> 6.46 | U5: =1.69+0.69+0.65+2.69 -> 5.72 | V5: =1.69+0.65+2.69+1.39+0.69 -> 7.11 | W5: =1.09+0.65+1.39+1.49+1.25+1.69+1.69+2.69+1.49+1.49+0.65+1.69+1.39+0.59 -> 19.24 | X5: =2.69+1.39+1.09+0.96+1.39+0.65+0.65+1.69 -> 10.51 | Y5: =1.69+2.69+1.39+1.09+1.39+0.94+0.65+0.65 -> 10.49 | Z5: =1.25+0.65+1.39+1.09+1.39 -> 5.77 | AA5: =1.09+1.39+1.27+1.39+0.65 -> 5.79 | AB5: =1.09+0.98+1.39+0.65+1.39 -> 5.5 | AG5: 167.03
A6: ='Riepilogo Annuale'!A6 -> 0 | AG6: 0
A7: ='Riepilogo Annuale'!A7 -> Mercato | AG7: 0
A8: ='Riepilogo Annuale'!A8 -> Altro (pizza, kebab, ...) | B8: =1+0.9+0.7+0.7 -> 3.3 | E8: =4+7 -> 11 | G8: 1 | I8: 1 | K8: =1.55+4+4 -> 9.55 | L8: =6+1+1 -> 8 | M8: =1+2.2+1.2-1.2+2.5+1+6 -> 12.7 | O8: =6+0.9+0.9+0.9+0.7+1.5+0.7 -> 11.6 | P8: =6+0.5+0.5+1 -> 8 | Q8: 6 | R8: 6 | S8: =6+0.9+0.9+0.7+0.7+0.7 -> 9.9 | T8: 6 | U8: =6+1 -> 7 | V8: =6+1+0.7 -> 7.7 | Y8: 0.7 | AD8: =8.5+1 -> 9.5 | AG8: 118.95
A9: =IF( AND(ISNUMBER('Riepilogo Annuale'!O2),YEAR(TODAY())='Riepilogo Annuale'!O2,MONTH(TODAY())=6), AG9/DAY(TODAY()), AG9/AE2 ) -> 11.42933333 | AG9: =SUM(AG4:AG8) -> 342.88
A11: ='Riepilogo Annuale'!A11 -> Amazon (elettronica, mus. mp3, ...) | D11: =10.99+12.99+10.99+11.99+14.99+0.99+1.29+1.29+1.29+1.29+1.29+0.99+1.29+1.29+1.29+0.99+1.29+0.99+0.99+0.99+0.99+1.29+1.29+1.29+1.29+1.29+0.99+1.29+1.29+1.29+1.29+1.29+1.29 -> 95.67 | L11: =0.99+0.99+0.99+0.99+0.99+0.99+0.99 -> 6.93 | M11: =10.99 -> 10.99 | N11: =1.29+3.99 -> 5.28 | X11: =12.99+8.99+8.99+1.29+1.29+0.99+2.99+2.99+0.99+0.99+0.99+1.29+0.99+1.29+1.29+2.99+1.29+1.29+1.29+1.29+1.19+0.99+0.99+0.99+1.29+1.29+1.29+1.29+1.29+1.29+1.29+1.29 -> 70.98 | Y11: =3.99+10.99+10.99+9.99+8.99+8.99 -> 53.94 | AA11: 1.79 | AG11: 245.58
A12: ='Riepilogo Annuale'!A12 -> Hardware & Software | D12: 30.97 | AG12: 30.97
A13: ='Riepilogo Annuale'!A13 -> Nuovi elettrodom., lamp. led, ... | D13: =1030+98.97 -> 1128.97 | AG13: 1128.97
A14: ='Riepilogo Annuale'!A14 -> 0 | AG14: 0
A15: ='Riepilogo Annuale'!A15 -> Altro (spese Webank, Aruba, ...) | C15: 0.68 | AG15: 0.68
A16: =IF( AND(ISNUMBER('Riepilogo Annuale'!O2),YEAR(TODAY())='Riepilogo Annuale'!O2,MONTH(TODAY())=6), AG16/DAY(TODAY()), AG16/AE2 ) -> 46.87333333 | AG16: =SUM(AG11:AG15) -> 1406.2
A18: ='Riepilogo Annuale'!A18 -> Generi non alim. (sapone, ...) | K18: 0.1 | V18: =0.1 -> 0.1 | AG18: 0.2
A19: ='Riepilogo Annuale'!A19 -> Parrucchiere | P19: 22 | AG19: 22
A20: ='Riepilogo Annuale'!A20 -> Abbigliamento (Bonprix, Zalando, ...) | AG20: 0
A21: ='Riepilogo Annuale'!A21 -> Cartoleria e libri | AG21: 0
A22: ='Riepilogo Annuale'!A22 -> Altro (spese mediche, ...) | AG22: 0
A23: =IF( AND(ISNUMBER('Riepilogo Annuale'!O2),YEAR(TODAY())='Riepilogo Annuale'!O2,MONTH(TODAY())=6), AG23/DAY(TODAY()), AG23/AE2 ) -> 0.74 | AG23: =SUM(AG18:AG22) -> 22.2
A25: ='Riepilogo Annuale'!A25 -> Elettricità | AE25: 20.57 | AG25: 20.57
A26: ='Riepilogo Annuale'!A26 -> Gas | AG26: 0
A27: ='Riepilogo Annuale'!A27 -> Connessione fibra + cellulare | V27: 28.89 | X27: 9.99 | AD27: 9.99 | AG27: 48.87
A28: ='Riepilogo Annuale'!A28 -> Spese condominiali | AE28: 790.13 | AG28: 790.13
A29: ='Riepilogo Annuale'!A29 -> Altro (tassa rifiuti, ...) | AE29: 62 | AG29: 62
A30: =IF( AND(ISNUMBER('Riepilogo Annuale'!O2),YEAR(TODAY())='Riepilogo Annuale'!O2,MONTH(TODAY())=6), AG30/DAY(TODAY()), AG30/AE2 ) -> 30.719 | AG30: =SUM(AG25:AG29) -> 921.57
A32: ='Riepilogo Annuale'!A32 -> Benzina e A.T.M. | J32: 70 | V32: 4.8 | AG32: 74.8
A33: ='Riepilogo Annuale'!A33 -> Spese e manutenzione automobile | AG33: 0
A34: ='Riepilogo Annuale'!A34 -> Spese ripar. casa (idraulico, ...) | AG34: 0
A35: ='Riepilogo Annuale'!A35 -> 0 | AG35: 0
A36: ='Riepilogo Annuale'!A36 -> Altro | AG36: 0
A37: =IF( AND(ISNUMBER('Riepilogo Annuale'!O2),YEAR(TODAY())='Riepilogo Annuale'!O2,MONTH(TODAY())=6), AG37/DAY(TODAY()), AG37/AE2 ) -> 2.493333333 | AG37: =SUM(AG32:AG36) -> 74.8

Sheet Luglio
A1: LUGLIO
B2: 1 | C2: 2 | D2: 3 | E2: 4 | F2: 5 | G2: 6 | H2: 7 | I2: 8 | J2: 9 | K2: 10 | L2: 11 | M2: 12 | N2: 13 | O2: 14 | P2: 15 | Q2: 16 | R2: 17 | S2: 18 | T2: 19 | U2: 20 | V2: 21 | W2: 22 | X2: 23 | Y2: 24 | Z2: 25 | AA2: 26 | AB2: 27 | AC2: 28 | AD2: 29 | AE2: 30 | AF2: 31
A4: ='Riepilogo Annuale'!A4 -> Esselunga | B4: =1.75+3.99-1.2-0.04 -> 4.5 | C4: =1.81+3.99-1.2+0.99-0.04 -> 5.55 | D4: =2.11+3.99-1.2+0.99-0.04 -> 5.85 | E4: =1.46+3.99-1.2+0.99-0.04 -> 5.2 | F4: =2.11+3.99-1.2+0.99-0.04 -> 5.85 | G4: =2.15+3.99-1.2+3.99-1.2+0.99+0.99-0.01 -> 9.7 | Q4: =4.89-1.47+0.65+0.65+0.99 -> 5.71 | R4: =0.4 -> 0.4 | S4: =1.39+0.99+3.99-0.04 -> 6.33 | T4: =0.65+0.65+0.65+0.65+0.65+3.59-0.04 -> 6.8 | X4: 1.95 | Y4: =1.98+0.99-0.02 -> 2.95 | AA4: =1.95+1.55+1.55+0.99-0.04 -> 6 | AB4: 2.4 | AC4: =0.99+1.29-0.03 -> 2.25 | AD4: =2.19+2.99-0.03 -> 5.15 | AE4: =0.65+0.65+0.65+0.65+1.95+1.09+3.59-0.03 -> 9.2 | AG4: =SUM(B4:AF4) -> 85.79
A5: ='Riepilogo Annuale'!A5 -> Penny Market | F5: =2.69+0.85+1.69+0.65+1.49+1.39 -> 8.76 | H5: =2.69+0.78+1.39+1.89+1.39+1.69-0.14+0.65+0.65 -> 10.99 | I5: =1.69-0.14+0.69+1.39+1.39+0.65+0.65 -> 6.32 | J5: =0.49+1.89+0.73+0.65+1.39+1.69-0.14 -> 6.7 | K5: =0.75+1.09+1.39+1.69-0.14+0.65 -> 5.43 | L5: =1.69-0.14+1.39+0.65+0.65+0.65+0.65+0.49+1.09+0.62 -> 7.74 | M5: =1.89+0.65+0.76+1.59-0.3+1.39+1.69-0.14 -> 7.53 | N5: =1.69-0.14+0.65+6.36-1.2 -> 7.36 | O5: =4.77-0.9+1.59-0.3+1.69-0.14+0.65+0.65 -> 8.01 | P5: =3.18-0.6+3.18-0.6+2.39+1.69+1.69-0.14+0.65+0.65 -> 12.09 | Q5: =0.85+3.18-0.6+3.18-0.6+2.19+1.69-0.14+0.49 -> 10.24 | U5: 1.69 | V5: 1.69 | W5: 7.43 | X5: 3.8 | Y5: =1.59+1.69 -> 3.28 | Z5: =1.69+1.49+0.21+0.57 -> 3.96 | AC5: =1.39+0.56+1.39+0.29+0.65+1.69 -> 5.97 | AE5: =1.69+1.69+0.54+0.65+0.65+1.39+1.39+1.89+4.11+1.8 -> 15.8 | AG5: 134.79
A6: ='Riepilogo Annuale'!A6 -> 0 | AG6: 0
A7: ='Riepilogo Annuale'!A7 -> Mercato | Q7: 15 | X7: 10 | AE7: 10 | AG7: 35
A8: ='Riepilogo Annuale'!A8 -> Altro (pizza, kebab, ...) | D8: =1+0.9 -> 1.9 | E8: 0.9 | F8: 6 | H8: =9+0.7+0.7+0.4 -> 10.8 | J8: =2.9+1+1.2+1+1+1+1.2 -> 9.3 | L8: =0.9+0.9+0.4+2.7 -> 4.9 | M8: =0.9+0.9+0.7 -> 2.5 | Q8: 8.5 | U8: 1 | Y8: =1+1+1+1.2+1.2 -> 5.4 | Z8: =0.7+0.4 -> 1.1 | AC8: =1.6+0.4+7 -> 9 | AD8: =2+6+3 -> 11 | AF8: =3+0.65+0.65+0.65+0.7+0.7+0.7 -> 7.05 | AG8: 79.35
A9: =IF( AND(ISNUMBER('Riepilogo Annuale'!O2),YEAR(TODAY())='Riepilogo Annuale'!O2,MONTH(TODAY())=7), AG9/DAY(TODAY()), AG9/AF2 ) -> 10.80419355 | AG9: =SUM(AG4:AG8) -> 334.93
A11: ='Riepilogo Annuale'!A11 -> Amazon (elettronica, mus. mp3, ...) | H11: =2.49+0.99+12.99 -> 16.47 | J11: =5.99+6.99+6.99+10.99+10.99+9.99 -> 51.94 | K11: =1.29+1.29+0.99+0.99+0.99+1.29+1.29+1.29+12.99+5.99 -> 28.4 | M11: =14.99+0.99+0.99+1.29 -> 18.26 | Q11: 1.29 | AG11: 116.36
A12: ='Riepilogo Annuale'!A12 -> Hardware & Software | AG12: 0
A13: ='Riepilogo Annuale'!A13 -> Nuovi elettrodom., lamp. led, ... | K13: =20.99+20.99+17.99 -> 59.97 | R13: =5.49+8.75-14.24 -> 0 | S13: 5.95 | AG13: 65.92
A14: ='Riepilogo Annuale'!A14 -> 0 | AG14: 0
A15: ='Riepilogo Annuale'!A15 -> Altro (spese Webank, Aruba, ...) | B15: 3.6 | AG15: 3.6
A16: =IF( AND(ISNUMBER('Riepilogo Annuale'!O2),YEAR(TODAY())='Riepilogo Annuale'!O2,MONTH(TODAY())=7), AG16/DAY(TODAY()), AG16/AF2 ) -> 5.996129032 | AG16: =SUM(AG11:AG15) -> 185.88
A18: ='Riepilogo Annuale'!A18 -> Generi non alim. (sapone, ...) | Q18: =0.58+3.48+5.49+7.49+7.49-7.49+7.49+7.49-7.49+10.8-3.24+5.49+10.8-3.24+3.1+2.7+1.99+2.45+1.59 -> 56.97 | S18: =3.1+2.85+2.85+1.99+0.58+1.99+2.4+19.5-9.75+0.99+2.29+2.19+2.19-27 -> 6.17 | AE18: =0.1+0.1 -> 0.2 | AG18: 63.34
A19: ='Riepilogo Annuale'!A19 -> Parrucchiere | AG19: 0
A20: ='Riepilogo Annuale'!A20 -> Abbigliamento (Bonprix, Zalando, ...) | AG20: 0
A21: ='Riepilogo Annuale'!A21 -> Cartoleria e libri | AG21: 0
A22: ='Riepilogo Annuale'!A22 -> Altro (spese mediche, ...) | AG22: 0
A23: =IF( AND(ISNUMBER('Riepilogo Annuale'!O2),YEAR(TODAY())='Riepilogo Annuale'!O2,MONTH(TODAY())=7), AG23/DAY(TODAY()), AG23/AF2 ) -> 2.043225806 | AG23: =SUM(AG18:AG22) -> 63.34
A25: ='Riepilogo Annuale'!A25 -> Elettricità | AG25: 0
A26: ='Riepilogo Annuale'!A26 -> Gas | AG26: 0
A27: ='Riepilogo Annuale'!A27 -> Connessione fibra + cellulare | W27: 28.89 | AC27: 9.99 | AG27: 38.88
A28: ='Riepilogo Annuale'!A28 -> Spese condominiali | AG28: 0
A29: ='Riepilogo Annuale'!A29 -> Altro (tassa rifiuti, ...) | AG29: 0
A30: =IF( AND(ISNUMBER('Riepilogo Annuale'!O2),YEAR(TODAY())='Riepilogo Annuale'!O2,MONTH(TODAY())=7), AG30/DAY(TODAY()), AG30/AF2 ) -> 1.254193548 | AG30: =SUM(AG25:AG29) -> 38.88
A32: ='Riepilogo Annuale'!A32 -> Benzina e A.T.M. | F32: 4.8 | J32: 50 | X32: 25 | AD32: 110 | AG32: 189.8
A33: ='Riepilogo Annuale'!A33 -> Spese e manutenzione automobile | AG33: 0
A34: ='Riepilogo Annuale'!A34 -> Spese ripar. casa (idraulico, ...) | AG34: 0
A35: ='Riepilogo Annuale'!A35 -> 0 | AG35: 0
A36: ='Riepilogo Annuale'!A36 -> Altro | AG36: 0
A37: =IF( AND(ISNUMBER('Riepilogo Annuale'!O2),YEAR(TODAY())='Riepilogo Annuale'!O2,MONTH(TODAY())=7), AG37/DAY(TODAY()), AG37/AF2 ) -> 6.122580645 | AG37: =SUM(AG32:AG36) -> 189.8

Sheet Agosto
A1: AGOSTO
B2: 1 | C2: 2 | D2: 3 | E2: 4 | F2: 5 | G2: 6 | H2: 7 | I2: 8 | J2: 9 | K2: 10 | L2: 11 | M2: 12 | N2: 13 | O2: 14 | P2: 15 | Q2: 16 | R2: 17 | S2: 18 | T2: 19 | U2: 20 | V2: 21 | W2: 22 | X2: 23 | Y2: 24 | Z2: 25 | AA2: 26 | AB2: 27 | AC2: 28 | AD2: 29 | AE2: 30 | AF2: 31
A4: ='Riepilogo Annuale'!A4 -> Esselunga | C4: =2.79+2.99+0.71 -> 6.49 | D4: =2.99+2.99-0.03 -> 5.95 | H4: =2.48+0.54+1.26+2.24+2.29-0.01 -> 8.8 | I4: =3.99+1.53+0.21+0.21-0.04 -> 5.9 | J4: =3.07+3.99+1.53+0.99+0.54-0.02 -> 10.1 | K4: =4.3+2.51+2.3+1.75+3.99+0.54+1.53+0.99-0.01 -> 17.9 | M4: =2.9+2.86+2.59 -> 8.35 | N4: =5.79+5.79+0.7-0.03 -> 12.25 | O4: =2.86+1.99+1.26+3.99 -> 10.1 | Q4: =5.79+6.59+1.35+1.35+1.35+5.74-0.02 -> 22.15 | S4: =4.17+4.27+3.98+5.79+5.79+1.26+1.26-0.01 -> 26.51 | U4: =1.55+2.86+1.53+1.44-0.03 -> 7.35 | W4: =1.31+2.86+3.69+3.59 -> 11.45 | X4: =2.29+0.99-0.03 -> 3.25 | Y4: =2.86+3.69+3.69+1.95+4.24+1.35-0.03+0.99+1.53-0.02 -> 20.25 | AA4: =4.21+2.74+0.21+3.99 -> 11.15 | AB4: =4.02+0.21+3.99-0.02 -> 8.2 | AC4: =4.87+2.19+1.26+1.26+3.99+3.69+3.69+3.59+1.53+1.53 -> 27.6 | AD4: =6.59+3.99-0.03 -> 10.55 | AE4: =6.59*3+3.99-0.01 -> 23.75 | AF4: =6.59*4+3.99+3.69+3.69+1.51+1.53-0.02 -> 40.75 | AG4: =SUM(B4:AF4) -> 298.8
A5: ='Riepilogo Annuale'!A5 -> Penny Market | D5: =0.57+1.69+1.59+1.39+1.39 -> 6.63 | E5: =0.65+1.8+1.69+1.69+4.11-0.57+3.18 -> 12.55 | H5: =0.49+1.69 -> 2.18 | L5: =1.69+1.59+1.49+1.39+0.65+0.54 -> 7.35 | R5: =1.59+1.8+0.65+1.58+1.69+3.99+0.2+0.65+1.69+2.19 -> 16.03 | AG5: 44.74
A6: ='Riepilogo Annuale'!A6 -> 0 | AG6: 0
A7: ='Riepilogo Annuale'!A7 -> Mercato | AG7: 0
A8: ='Riepilogo Annuale'!A8 -> Altro (pizza, kebab, ...) | B8: =4+0.7+0.65+0.65+0.65+0.4+0.65 -> 7.7 | C8: =0.5+0.5+0.45+0.45+0.7+0.7 -> 3.3 | D8: 10.7 | E8: =15+12.25 -> 27.25 | F8: 10 | G8: =5+0.5+0.5+0.5+0.5+0.65+2 -> 9.65 | H8: 2 | I8: =2+2 -> 4 | J8: =1+1.2+2.9+4 -> 9.1 | L8: =2+0.5+0.65 -> 3.15 | M8: =2+0.5+0.65+0.4+0.4 -> 3.95 | N8: =0.5+0.5+0.65+1.4+1.4 -> 4.45 | P8: =0.5+0.5+0.45+0.45+2 -> 3.9 | Q8: =0.5+0.5+0.5+0.45 -> 1.95 | R8: =0.5+0.5+2 -> 3 | S8: =0.65+0.5+0.5+0.5+0.5+2 -> 4.65 | T8: =0.5+0.5+2 -> 3 | U8: =0.5+1.4+1.4+1.4+0.65+2 -> 7.35 | X8: =0.5+0.5+1.4+0.65+0.65+0.65 -> 4.35 | Y8: =2+5.8+3.7+2.9 -> 14.4 | Z8: =0.5+0.5+0.5+0.5+0.5+1.4+0.65+0.65 -> 5.2 | AC8: =1.4+1.4+0.5+0.45 -> 3.75 | AG8: 146.8
A9: =IF( AND(ISNUMBER('Riepilogo Annuale'!O2),YEAR(TODAY())='Riepilogo Annuale'!O2,MONTH(TODAY())=8), AG9/DAY(TODAY()), AG9/AF2 ) -> 15.81741935 | AG9: =SUM(AG4:AG8) -> 490.34
A11: ='Riepilogo Annuale'!A11 -> Amazon (elettronica, mus. mp3, ...) | J11: =9.99+8.99+9.99+8.99+9.99+14.99 -> 62.94 | O11: =1.79+1.29 -> 3.08 | AG11: 66.02
A12: ='Riepilogo Annuale'!A12 -> Hardware & Software | C12: 141.34 | AG12: 141.34
A13: ='Riepilogo Annuale'!A13 -> Nuovi elettrodom., lamp. led, ... | AG13: 0
A14: ='Riepilogo Annuale'!A14 -> 0 | AG14: 0
A15: ='Riepilogo Annuale'!A15 -> Altro (spese Webank, Aruba, ...) | B15: 1 | AG15: 1
A16: =IF( AND(ISNUMBER('Riepilogo Annuale'!O2),YEAR(TODAY())='Riepilogo Annuale'!O2,MONTH(TODAY())=8), AG16/DAY(TODAY()), AG16/AF2 ) -> 6.721290323 | AG16: =SUM(AG11:AG15) -> 208.36
A18: ='Riepilogo Annuale'!A18 -> Generi non alim. (sapone, ...) | D18: 5 | E18: 0.2 | S18: =0.99+1.75 -> 2.74 | AG18: 7.94
A19: ='Riepilogo Annuale'!A19 -> Parrucchiere | AG19: 0
A20: ='Riepilogo Annuale'!A20 -> Abbigliamento (Bonprix, Zalando, ...) | AG20: 0
A21: ='Riepilogo Annuale'!A21 -> Cartoleria e libri | AG21: 0
A22: ='Riepilogo Annuale'!A22 -> Altro (spese mediche, ...) | AG22: 0
A23: =IF( AND(ISNUMBER('Riepilogo Annuale'!O2),YEAR(TODAY())='Riepilogo Annuale'!O2,MONTH(TODAY())=8), AG23/DAY(TODAY()), AG23/AF2 ) -> 0.2561290323 | AG23: =SUM(AG18:AG22) -> 7.94
A25: ='Riepilogo Annuale'!A25 -> Elettricità | C25: 20.81 | AG25: 20.81
A26: ='Riepilogo Annuale'!A26 -> Gas | AA26: 54.33 | AG26: 54.33
A27: ='Riepilogo Annuale'!A27 -> Connessione fibra + cellulare | V27: 30.89 | AG27: 30.89
A28: ='Riepilogo Annuale'!A28 -> Spese condominiali | AG28: 0
A29: ='Riepilogo Annuale'!A29 -> Altro (tassa rifiuti, ...) | AG29: 0
A30: =IF( AND(ISNUMBER('Riepilogo Annuale'!O2),YEAR(TODAY())='Riepilogo Annuale'!O2,MONTH(TODAY())=8), AG30/DAY(TODAY()), AG30/AF2 ) -> 3.420322581 | AG30: =SUM(AG25:AG29) -> 106.03
A32: ='Riepilogo Annuale'!A32 -> Benzina e A.T.M. | L32: 10 | AG32: 10
A33: ='Riepilogo Annuale'!A33 -> Spese e manutenzione automobile | T33: 74.9 | AG33: 74.9
A34: ='Riepilogo Annuale'!A34 -> Spese ripar. casa (idraulico, ...) | AG34: 0
A35: ='Riepilogo Annuale'!A35 -> 0 | AG35: 0
A36: ='Riepilogo Annuale'!A36 -> Altro | AG36: 0
A37: =IF( AND(ISNUMBER('Riepilogo Annuale'!O2),YEAR(TODAY())='Riepilogo Annuale'!O2,MONTH(TODAY())=8), AG37/DAY(TODAY()), AG37/AF2 ) -> 2.738709677 | AG37: =SUM(AG32:AG36) -> 84.9

Sheet Settembre
A1: SETTEMBRE
B2: 1 | C2: 2 | D2: 3 | E2: 4 | F2: 5 | G2: 6 | H2: 7 | I2: 8 | J2: 9 | K2: 10 | L2: 11 | M2: 12 | N2: 13 | O2: 14 | P2: 15 | Q2: 16 | R2: 17 | S2: 18 | T2: 19 | U2: 20 | V2: 21 | W2: 22 | X2: 23 | Y2: 24 | Z2: 25 | AA2: 26 | AB2: 27 | AC2: 28 | AD2: 29 | AE2: 30
A4: ='Riepilogo Annuale'!A4 -> Esselunga | B4: =1.19+6.59+1.56+1.53+1.53+1.35+1.35+3.99-0.04 -> 19.05 | C4: =1.19+1.35+1.35+3.99-0.03 -> 7.85 | D4: =6.59+1.19+1.44+4.98+3.99+3.69-0.03 -> 21.85 | E4: =1.49+6.59+1.44+0.95-0.1+2.86+0.21+0.21+0.21+0.79+1.1 -> 15.75 | F4: =2.98+6.59+1.35+1.35+1.19+0.54+1.56-0.01 -> 15.55 | H4: =2.15+1.1+0.69+1.19+6.59+6.59+1.56+4.98+1.85+3.59-0.04 -> 30.25 | I4: =1.35+1.35+1.19+1.1-0.04 -> 4.95 | J4: =1.1+1.19+1.35+1.35+1.56+3.69+3.69-0.03 -> 13.9 | K4: =4.89-1.47+1.1+1.1+1.1+1.1+1.44+6.59+1.49+1.39+0.99+0.99-0.01 -> 20.7 | L4: =1.1*4+1.35*2+1.44+1.49-0.03 -> 10 | M4: =4.41+1.1+1.1+0.99+0.99+1.39+1.44+1.49-0.01 -> 12.9 | N4: =1.44+1.1+1.1+1.49+2.99 -> 8.12 | O4: =1.1+1.1+1.44+6.59+1.49-0.02 -> 11.7 | P4: =1.1+1.1+0.99+0.99+1.39+2.99-0.01 -> 8.55 | Q4: =1.7-0.34+1.1+1.1+1.39+0.99+0.99+1.44+2.99+1.49 -> 12.85 | R4: =1.7-0.34+1.44+0.75 -> 3.55 | S4: =5.99+1.72-0.18+1.1+1.1+6.59+1.44+2.99+1.49+0.99+0.99+0.99-0.5+0.99-0.5+0.99+0.99-0.5+1.39+5.99+4.99-2+10.15 -> 47.2 | T4: =0.99+0.99-0.5+0.99+0.99-0.5+0.99+0.99-0.5+0.99+0.99-0.5+0.99+0.99-0.5+0.99+0.99-0.5+0.99+0.99-0.5+0.99+0.99-0.5+0.99+0.99-0.5+0.99+0.99-0.5+0.99+0.99-0.5+0.99+0.99-0.5+1.39*5+0.79+1.09+1.7-0.34+1.7-0.34+6.59+2.99+1.49-8-0.03 -> 32.35 | U4: =1.7-0.34+1.7-0.34+1.49*3-0.04 -> 7.15 | W4: =1.59+1.59+4.99+4.99+1.49 -> 14.65 | Y4: =1.59+1.59+1.1+1.49+1.49+0.54+2.79-0.56-0.03 -> 10 | Z4: =1.59+1.89+1.44+1.49-0.01 -> 6.4 | AA4: =1.44+1.49+1.49+1.1*3+1.59+3.99 -> 13.3 | AB4: =1.59+1.44+4.98+1.59 -> 9.6 | AC4: =9.31+1.89+1.44+1.59+1.59+3.99+1.59+0.99+0.99+1.39+1.39-0.7+1.29+1.29-0.65+0.99+0.99-0.5+1.39+1.39-0.7+1.99+1.99-1+1.99+1.99-1+1.39+1.39-0.7+1.29+1.29-0.65+1.99+1.99-1+0.99-0.5+0.99-0.5+1.39+1.39-0.7+1.39+0.85*9+1.09+0.79+0.79+1.59+1.59-8 -> 53.85 | AD4: =0.79+0.79+1.59+1.39+1.39-0.7+1.39+0.85+0.85-0.04 -> 8.3 | AE4: =1.59+1.59+1.44+3.99-2+0.21+0.21-0.03 -> 7 | AG4: =SUM(B4:AF4) -> 427.32
A5: ='Riepilogo Annuale'!A5 -> Penny Market | B5: =1.69*7 -> 11.83 | Q5: =1.69+1.69 -> 3.38 | AG5: 15.21
A6: ='Riepilogo Annuale'!A6 -> 0 | AG6: 0
A7: ='Riepilogo Annuale'!A7 -> Mercato | AG7: 0
A8: ='Riepilogo Annuale'!A8 -> Altro (pizza, kebab, ...) | D8: 6.5 | F8: =2.9+2.9+2+2 -> 9.8 | H8: =2+2.7+4.2+1.1 -> 10 | J8: =1+1+2 -> 4 | K8: =1+1+1.2+1+2.9 -> 7.1 | R8: 4 | S8: 0.65 | U8: =1+1+1+1+1+0.5 -> 5.5 | V8: 5 | W8: 0.35 | X8: 5 | AC8: 6.5 | AE8: 3 | AG8: 67.4
A9: =IF( AND(ISNUMBER('Riepilogo Annuale'!O2),YEAR(TODAY())='Riepilogo Annuale'!O2,MONTH(TODAY())=9), AG9/DAY(TODAY()), AG9/AE2 ) -> 16.99766667 | AG9: =SUM(AG4:AG8) -> 509.93
A11: ='Riepilogo Annuale'!A11 -> Amazon (elettronica, mus. mp3, ...) | C11: 65 | S11: =10.99+14.99 -> 25.98 | T11: =17.9+0.99+0.99+0.99+1.19+1.29+1.19+1.29+8.7 -> 34.53 | U11: =13.99+10.99+8.99 -> 33.97 | AG11: 159.48
A12: ='Riepilogo Annuale'!A12 -> Hardware & Software | AG12: 0
A13: ='Riepilogo Annuale'!A13 -> Nuovi elettrodom., lamp. led, ... | AG13: 0
A14: ='Riepilogo Annuale'!A14 -> 0 | AG14: 0
A15: ='Riepilogo Annuale'!A15 -> Altro (spese Webank, Aruba, ...) | C15: 1 | AE15: 3.6 | AG15: 4.6
A16: =IF( AND(ISNUMBER('Riepilogo Annuale'!O2),YEAR(TODAY())='Riepilogo Annuale'!O2,MONTH(TODAY())=9), AG16/DAY(TODAY()), AG16/AE2 ) -> 5.469333333 | AG16: =SUM(AG11:AG15) -> 164.08
A18: ='Riepilogo Annuale'!A18 -> Generi non alim. (sapone, ...) | C18: =11.99+18.99+17.95 -> 48.93 | N18: 0.1 | AG18: 49.03
A19: ='Riepilogo Annuale'!A19 -> Parrucchiere | C19: 21.1 | AG19: 21.1
A20: ='Riepilogo Annuale'!A20 -> Abbigliamento (Bonprix, Zalando, ...) | AG20: 0
A21: ='Riepilogo Annuale'!A21 -> Cartoleria e libri | C21: 8.29 | L21: 23.5 | N21: =8.79+3.49-0.7-5 -> 6.58 | AG21: 38.37
A22: ='Riepilogo Annuale'!A22 -> Altro (spese mediche, ...) | B22: 13.42 | AG22: 13.42
A23: =IF( AND(ISNUMBER('Riepilogo Annuale'!O2),YEAR(TODAY())='Riepilogo Annuale'!O2,MONTH(TODAY())=9), AG23/DAY(TODAY()), AG23/AE2 ) -> 4.064 | AG23: =SUM(AG18:AG22) -> 121.92
A25: ='Riepilogo Annuale'!A25 -> Elettricità | K25: 22.65 | AE25: 22.78 | AG25: 45.43
A26: ='Riepilogo Annuale'!A26 -> Gas | AG26: 0
A27: ='Riepilogo Annuale'!A27 -> Connessione fibra + cellulare | B27: 9.99 | V27: 28.89 | AB27: 9.99 | AG27: 48.87
A28: ='Riepilogo Annuale'!A28 -> Spese condominiali | AE28: 790.13 | AG28: 790.13
A29: ='Riepilogo Annuale'!A29 -> Altro (tassa rifiuti, ...) | AG29: 0
A30: =IF( AND(ISNUMBER('Riepilogo Annuale'!O2),YEAR(TODAY())='Riepilogo Annuale'!O2,MONTH(TODAY())=9), AG30/DAY(TODAY()), AG30/AE2 ) -> 29.481 | AG30: =SUM(AG25:AG29) -> 884.43
A32: ='Riepilogo Annuale'!A32 -> Benzina e A.T.M. | C32: 60 | Z32: 20 | AG32: 80
A33: ='Riepilogo Annuale'!A33 -> Spese e manutenzione automobile | O33: 160 | AC33: 50 | AG33: 210
A34: ='Riepilogo Annuale'!A34 -> Spese ripar. casa (idraulico, ...) | AG34: 0
A35: ='Riepilogo Annuale'!A35 -> 0 | AG35: 0
A36: ='Riepilogo Annuale'!A36 -> Altro | AG36: 0
A37: =IF( AND(ISNUMBER('Riepilogo Annuale'!O2),YEAR(TODAY())='Riepilogo Annuale'!O2,MONTH(TODAY())=9), AG37/DAY(TODAY()), AG37/AE2 ) -> 9.666666667 | AG37: =SUM(AG32:AG36) -> 290

Sheet Ottobre
A1: OTTOBRE
B2: 1 | C2: 2 | D2: 3 | E2: 4 | F2: 5 | G2: 6 | H2: 7 | I2: 8 | J2: 9 | K2: 10 | L2: 11 | M2: 12 | N2: 13 | O2: 14 | P2: 15 | Q2: 16 | R2: 17 | S2: 18 | T2: 19 | U2: 20 | V2: 21 | W2: 22 | X2: 23 | Y2: 24 | Z2: 25 | AA2: 26 | AB2: 27 | AC2: 28 | AD2: 29 | AE2: 30 | AF2: 31
A4: ='Riepilogo Annuale'!A4 -> Esselunga | D4: 3 | E4: 4.55 | F4: 4.7 | I4: 6 | J4: 5.2 | K4: 3.8 | L4: 3 | N4: 3.8 | P4: 6.5 | Q4: 6.5 | R4: 7.15 | S4: 8.65 | U4: =10.1+12.2 -> 22.3 | V4: 19.36 | W4: 10 | Y4: 9.4 | Z4: 9.75 | AB4: 12.45 | AC4: 9.5 | AD4: 10 | AE4: 6.85 | AG4: =SUM(B4:AF4) -> 172.46
A5: ='Riepilogo Annuale'!A5 -> Penny Market | K5: 5.66 | N5: 5.14 | AG5: 10.8
A6: ='Riepilogo Annuale'!A6 -> 0 | AG6: 0
A7: ='Riepilogo Annuale'!A7 -> Mercato | AG7: 0
A8: ='Riepilogo Annuale'!A8 -> Altro (pizza, kebab, ...) | B8: 1.7 | C8: 1 | E8: 10 | F8: 10 | G8: 5 | K8: 1 | L8: 5.35 | M8: 10 | P8: 0.5 | Q8: 2.55 | R8: 2 | S8: 2.15 | T8: 1.6 | U8: 3 | X8: 2.25 | Y8: 10.6 | AA8: 10.25 | AB8: 2.55 | AC8: 5.5 | AD8: 12 | AG8: 99
A9: =IF( AND(ISNUMBER('Riepilogo Annuale'!O2),YEAR(TODAY())='Riepilogo Annuale'!O2,MONTH(TODAY())=10), AG9/DAY(TODAY()), AG9/AF2 ) -> 9.10516129 | AG9: =SUM(AG4:AG8) -> 282.26
A11: ='Riepilogo Annuale'!A11 -> Amazon (elettronica, mus. mp3, ...) | B11: =6.99+11.89 -> 18.88 | C11: =9.99+9.99+10.99+9.99 -> 40.96 | E11: =5.99+7.99+9.99 -> 23.97 | G11: =17.99+8.99 -> 26.98 | I11: =1.29+1.29+1.29+1.29+0.99 -> 6.15 | AG11: 116.94
A12: ='Riepilogo Annuale'!A12 -> Hardware & Software | AG12: 0
A13: ='Riepilogo Annuale'!A13 -> Nuovi elettrodom., lamp. led, ... | AG13: 0
A14: ='Riepilogo Annuale'!A14 -> 0 | AG14: 0
A15: ='Riepilogo Annuale'!A15 -> Altro (spese Webank, Aruba, ...) | AG15: 0
A16: =IF( AND(ISNUMBER('Riepilogo Annuale'!O2),YEAR(TODAY())='Riepilogo Annuale'!O2,MONTH(TODAY())=10), AG16/DAY(TODAY()), AG16/AF2 ) -> 3.772258065 | AG16: =SUM(AG11:AG15) -> 116.94
A18: ='Riepilogo Annuale'!A18 -> Generi non alim. (sapone, ...) | V18: =1.29+2.55 -> 3.84 | AG18: 3.84
A19: ='Riepilogo Annuale'!A19 -> Parrucchiere | AG19: 0
A20: ='Riepilogo Annuale'!A20 -> Abbigliamento (Bonprix, Zalando, ...) | AG20: 0
A21: ='Riepilogo Annuale'!A21 -> Cartoleria e libri | AG21: 0
A22: ='Riepilogo Annuale'!A22 -> Altro (spese mediche, ...) | AG22: 0
A23: =IF( AND(ISNUMBER('Riepilogo Annuale'!O2),YEAR(TODAY())='Riepilogo Annuale'!O2,MONTH(TODAY())=10), AG23/DAY(TODAY()), AG23/AF2 ) -> 0.1238709677 | AG23: =SUM(AG18:AG22) -> 3.84
A25: ='Riepilogo Annuale'!A25 -> Elettricità | AG25: 0
A26: ='Riepilogo Annuale'!A26 -> Gas | AG26: 0
A27: ='Riepilogo Annuale'!A27 -> Connessione fibra + cellulare | W27: 28.89 | AA27: 9.99 | AG27: 38.88
A28: ='Riepilogo Annuale'!A28 -> Spese condominiali | AG28: 0
A29: ='Riepilogo Annuale'!A29 -> Altro (tassa rifiuti, ...) | AG29: 0
A30: =IF( AND(ISNUMBER('Riepilogo Annuale'!O2),YEAR(TODAY())='Riepilogo Annuale'!O2,MONTH(TODAY())=10), AG30/DAY(TODAY()), AG30/AF2 ) -> 1.254193548 | AG30: =SUM(AG25:AG29) -> 38.88
A32: ='Riepilogo Annuale'!A32 -> Benzina e A.T.M. | W32: 50 | AG32: 50
A33: ='Riepilogo Annuale'!A33 -> Spese e manutenzione automobile | AG33: 0
A34: ='Riepilogo Annuale'!A34 -> Spese ripar. casa (idraulico, ...) | U34: 240 | AG34: 240
A35: ='Riepilogo Annuale'!A35 -> 0 | AG35: 0
A36: ='Riepilogo Annuale'!A36 -> Altro | AG36: 0
A37: =IF( AND(ISNUMBER('Riepilogo Annuale'!O2),YEAR(TODAY())='Riepilogo Annuale'!O2,MONTH(TODAY())=10), AG37/DAY(TODAY()), AG37/AF2 ) -> 9.35483871 | AG37: =SUM(AG32:AG36) -> 290

Sheet Novembre
A1: NOVEMBRE
B2: 1 | C2: 2 | D2: 3 | E2: 4 | F2: 5 | G2: 6 | H2: 7 | I2: 8 | J2: 9 | K2: 10 | L2: 11 | M2: 12 | N2: 13 | O2: 14 | P2: 15 | Q2: 16 | R2: 17 | S2: 18 | T2: 19 | U2: 20 | V2: 21 | W2: 22 | X2: 23 | Y2: 24 | Z2: 25 | AA2: 26 | AB2: 27 | AC2: 28 | AD2: 29 | AE2: 30
A4: ='Riepilogo Annuale'!A4 -> Esselunga | B4: 5.45 | E4: 0.7 | F4: 3.5 | G4: 11.25 | K4: 4.2 | L4: 2.95 | M4: 4.7 | N4: 6.8 | O4: 7.35 | P4: 5.2 | Q4: 15.81 | R4: =27.45-2.19-2.99+1.2-1.59-2.95 -> 18.93 | S4: 13.58 | T4: 14.86 | U4: 15.3 | V4: 14.3 | X4: 7.35 | Y4: 22.65 | Z4: 10.85 | AA4: 11.7 | AB4: 14.82 | AC4: =8.85+15.98 -> 24.83 | AD4: 12.6 | AE4: 6.3 | AG4: =SUM(B4:AF4) -> 255.98
A5: ='Riepilogo Annuale'!A5 -> Penny Market | E5: 4.87 | AG5: 4.87
A6: ='Riepilogo Annuale'!A6 -> 0 | AD6: 13.7 | AG6: 13.7
A7: ='Riepilogo Annuale'!A7 -> Mercato | AG7: 0
A8: ='Riepilogo Annuale'!A8 -> Altro (pizza, kebab, ...) | B8: 7.7 | D8: 3 | H8: 10 | I8: 2.5 | J8: 2.15 | K8: 5.8 | L8: 2.05 | M8: 5.3 | P8: 3 | Q8: 7.55 | R8: 2.55 | U8: 2.5 | V8: 1 | W8: 1.75 | X8: 7.65 | AA8: 0.4 | AB8: 7.6 | AC8: 4.65 | AG8: 77.15
A9: =IF( AND(ISNUMBER('Riepilogo Annuale'!O2),YEAR(TODAY())='Riepilogo Annuale'!O2,MONTH(TODAY())=11), AG9/DAY(TODAY()), AG9/AE2 ) -> 11.72333333 | AG9: =SUM(AG4:AG8) -> 351.7
A11: ='Riepilogo Annuale'!A11 -> Amazon (elettronica, mus. mp3, ...) | B11: =13.99+6.99+1.29+10.99+10.99+9.99+9.99+9.99+10.99+10.99+9.99+9.99+9.99+10.99+24.99+10.99 -> 173.14 | C11: =1.29+1.29+0.99 -> 3.57 | E11: 1.29 | Z11: 1.79 | AG11: 179.79
A12: ='Riepilogo Annuale'!A12 -> Hardware & Software | B12: 32 | AG12: 32
A13: ='Riepilogo Annuale'!A13 -> Nuovi elettrodom., lamp. led, ... | AG13: 0
A14: ='Riepilogo Annuale'!A14 -> 0 | AG14: 0
A15: ='Riepilogo Annuale'!A15 -> Altro (spese Webank, Aruba, ...) | B15: 2 | P15: 1 | AG15: 3
A16: =IF( AND(ISNUMBER('Riepilogo Annuale'!O2),YEAR(TODAY())='Riepilogo Annuale'!O2,MONTH(TODAY())=11), AG16/DAY(TODAY()), AG16/AE2 ) -> 7.159666667 | AG16: =SUM(AG11:AG15) -> 214.79
A18: ='Riepilogo Annuale'!A18 -> Generi non alim. (sapone, ...) | P18: 18.89 | Q18: 2.29 | R18: =2.19+2.99-1.2+1.59+2.95 -> 8.52 | S18: 2.77 | T18: 10.34 | AB18: 4.58 | AC18: =10.99+4.58 -> 15.57 | AG18: 62.96
A19: ='Riepilogo Annuale'!A19 -> Parrucchiere | Q19: 22 | AG19: 22
A20: ='Riepilogo Annuale'!A20 -> Abbigliamento (Bonprix, Zalando, ...) | P20: 69.97 | AG20: 69.97
A21: ='Riepilogo Annuale'!A21 -> Cartoleria e libri | AG21: 0
A22: ='Riepilogo Annuale'!A22 -> Altro (spese mediche, ...) | AG22: 0
A23: =IF( AND(ISNUMBER('Riepilogo Annuale'!O2),YEAR(TODAY())='Riepilogo Annuale'!O2,MONTH(TODAY())=11), AG23/DAY(TODAY()), AG23/AE2 ) -> 5.164333333 | AG23: =SUM(AG18:AG22) -> 154.93
A25: ='Riepilogo Annuale'!A25 -> Elettricità | C25: 21.09 | AG25: 21.09
A26: ='Riepilogo Annuale'!A26 -> Gas | AG26: 0
A27: ='Riepilogo Annuale'!A27 -> Connessione fibra + cellulare | V27: 28.89 | AG27: 28.89
A28: ='Riepilogo Annuale'!A28 -> Spese condominiali | AG28: 0
A29: ='Riepilogo Annuale'!A29 -> Altro (tassa rifiuti, ...) | AG29: 0
A30: =IF( AND(ISNUMBER('Riepilogo Annuale'!O2),YEAR(TODAY())='Riepilogo Annuale'!O2,MONTH(TODAY())=11), AG30/DAY(TODAY()), AG30/AE2 ) -> 1.666 | AG30: =SUM(AG25:AG29) -> 49.98
A32: ='Riepilogo Annuale'!A32 -> Benzina e A.T.M. | I32: 50 | AG32: 50
A33: ='Riepilogo Annuale'!A33 -> Spese e manutenzione automobile | AG33: 0
A34: ='Riepilogo Annuale'!A34 -> Spese ripar. casa (idraulico, ...) | AG34: 0
A35: ='Riepilogo Annuale'!A35 -> 0 | AG35: 0
A36: ='Riepilogo Annuale'!A36 -> Altro | AG36: 0
A37: =IF( AND(ISNUMBER('Riepilogo Annuale'!O2),YEAR(TODAY())='Riepilogo Annuale'!O2,MONTH(TODAY())=11), AG37/DAY(TODAY()), AG37/AE2 ) -> 1.666666667 | AG37: =SUM(AG32:AG36) -> 50

Sheet Dicembre
A1: DICEMBRE
B2: 1 | C2: 2 | D2: 3 | E2: 4 | F2: 5 | G2: 6 | H2: 7 | I2: 8 | J2: 9 | K2: 10 | L2: 11 | M2: 12 | N2: 13 | O2: 14 | P2: 15 | Q2: 16 | R2: 17 | S2: 18 | T2: 19 | U2: 20 | V2: 21 | W2: 22 | X2: 23 | Y2: 24 | Z2: 25 | AA2: 26 | AB2: 27 | AC2: 28 | AD2: 29 | AE2: 30 | AF2: 31
A4: ='Riepilogo Annuale'!A4 -> Esselunga | C4: 16.05 | D4: 12.35 | E4: 11.15 | F4: 24.75 | H4: 7.05 | I4: 23.37 | J4: =17.05+5.05 -> 22.1 | K4: 7.4 | L4: 8.25 | M4: 19.7 | O4: 11.65 | P4: 18.1 | T4: 11.15 | U4: 9.6 | V4: 25.34 | X4: =12.05+10.5 -> 22.55 | AB4: 14.05 | AC4: 9.55 | AD4: 34.35 | AE4: =14.4+17.8 -> 32.2 | AF4: 19.3 | AG4: =SUM(B4:AF4) -> 360.01
A5: ='Riepilogo Annuale'!A5 -> Penny Market | AG5: 0
A6: ='Riepilogo Annuale'!A6 -> 0 | B6: 5.98 | C6: 13.54 | AG6: 19.52
A7: ='Riepilogo Annuale'!A7 -> Mercato | AG7: 0
A8: ='Riepilogo Annuale'!A8 -> Altro (pizza, kebab, ...) | D8: =3.4+1.6+2 -> 7 | H8: 8 | J8: =3.4+1.25 -> 4.65 | K8: 2.6 | M8: 10 | P8: 5.6 | Q8: 10 | R8: 2.2 | S8: 10 | U8: 2.7 | W8: 8 | X8: 2.5 | Y8: 6.25 | Z8: 4 | AA8: 6 | AB8: =1+6 -> 7 | AE8: 6 | AF8: 6 | AG8: 108.5
A9: =IF( AND(ISNUMBER('Riepilogo Annuale'!O2),YEAR(TODAY())='Riepilogo Annuale'!O2,MONTH(TODAY())=12), AG9/DAY(TODAY()), AG9/AF2 ) -> 15.74290323 | AG9: =SUM(AG4:AG8) -> 488.03
A11: ='Riepilogo Annuale'!A11 -> Amazon (elettronica, mus. mp3, ...) | I11: =19.98 -> 19.98 | X11: =11.99+2.49+9.99+9.99+9.99+8.99+9.99+13.99 -> 77.42 | AF11: =9.99+9.99+9.99+9.99+9.99+9.99+9.99+9.99+9.99+9.99+8.99+24.99+24.99+29.99+24.99+14.99+24.99 -> 253.83 | AG11: 351.23
A12: ='Riepilogo Annuale'!A12 -> Hardware & Software | AG12: 0
A13: ='Riepilogo Annuale'!A13 -> Nuovi elettrodom., lamp. led, ... | AG13: 0
A14: ='Riepilogo Annuale'!A14 -> 0 | AG14: 0
A15: ='Riepilogo Annuale'!A15 -> Altro (spese Webank, Aruba, ...) | I15: 1 | AG15: 1
A16: =IF( AND(ISNUMBER('Riepilogo Annuale'!O2),YEAR(TODAY())='Riepilogo Annuale'!O2,MONTH(TODAY())=12), AG16/DAY(TODAY()), AG16/AF2 ) -> 11.36225806 | AG16: =SUM(AG11:AG15) -> 352.23
A18: ='Riepilogo Annuale'!A18 -> Generi non alim. (sapone, ...) | I18: 3.18 | AG18: 3.18
A19: ='Riepilogo Annuale'!A19 -> Parrucchiere | AG19: 0
A20: ='Riepilogo Annuale'!A20 -> Abbigliamento (Bonprix, Zalando, ...) | AG20: 0
A21: ='Riepilogo Annuale'!A21 -> Cartoleria e libri | AG21: 0
A22: ='Riepilogo Annuale'!A22 -> Altro (spese mediche, ...) | AG22: 0
A23: =IF( AND(ISNUMBER('Riepilogo Annuale'!O2),YEAR(TODAY())='Riepilogo Annuale'!O2,MONTH(TODAY())=12), AG23/DAY(TODAY()), AG23/AF2 ) -> 0.1025806452 | AG23: =SUM(AG18:AG22) -> 3.18
A25: ='Riepilogo Annuale'!A25 -> Elettricità | B25: 19.65 | X25: 20.57 | AG25: 40.22
A26: ='Riepilogo Annuale'!A26 -> Gas | T26: 41.12 | AG26: 41.12
A27: ='Riepilogo Annuale'!A27 -> Connessione fibra + cellulare | C27: 9.99 | W27: 28.89 | AC27: 9.99 | AG27: 48.87
A28: ='Riepilogo Annuale'!A28 -> Spese condominiali | J28: 335.91 | AF28: 790.13 | AG28: 1126.04
A29: ='Riepilogo Annuale'!A29 -> Altro (tassa rifiuti, ...) | AF29: 61 | AG29: 61
A30: =IF( AND(ISNUMBER('Riepilogo Annuale'!O2),YEAR(TODAY())='Riepilogo Annuale'!O2,MONTH(TODAY())=12), AG30/DAY(TODAY()), AG30/AF2 ) -> 42.49193548 | AG30: =SUM(AG25:AG29) -> 1317.25
A32: ='Riepilogo Annuale'!A32 -> Benzina e A.T.M. | M32: 50 | AE32: 50 | AG32: 100
A33: ='Riepilogo Annuale'!A33 -> Spese e manutenzione automobile | AG33: 0
A34: ='Riepilogo Annuale'!A34 -> Spese ripar. casa (idraulico, ...) | AG34: 0
A35: ='Riepilogo Annuale'!A35 -> 0 | AG35: 0
A36: ='Riepilogo Annuale'!A36 -> Altro | AG36: 0
A37: =IF( AND(ISNUMBER('Riepilogo Annuale'!O2),YEAR(TODAY())='Riepilogo Annuale'!O2,MONTH(TODAY())=12), AG37/DAY(TODAY()), AG37/AF2 ) -> 3.225806452 | AG37: =SUM(AG32:AG36) -> 100

Sheet Riepilogo Annuale
A1: CONTABILITÀ ANNUALE
A2: =IF(AND(OR(C39<>0,D39<>0,E39<>0,F39<>0,G39<>0,H39<>0,I39<>0,J39<>0,K39<>0,L39<>0,M39<>0,N39<>0),OR(C41<>0,D41<>0,E41<>0,F41<>0,G41<>0,H41<>0,I41<>0,J41<>0,K41<>0,L41<>0,M41<>0,N41<>0)),100*SUM(O9,O16,O23,O30,O37)/SUM(C41:N41)/100,"") -> 1.110130441 | C2: GEN | D2: FEB | E2: MAR | F2: APR | G2: MAG | H2: GIU | I2: LUG | J2: AGO | K2: SET | L2: OTT | M2: NOV | N2: DIC | O2: 2022
A4: Esselunga | C4: =Gennaio!AG4 -> 123.42 | D4: =Febbraio!AG4 -> 107.45 | E4: =Marzo!AG4 -> 164.88 | F4: =Aprile!AG4 -> 292.67 | G4: =Maggio!AG4 -> 187.34 | H4: =Giugno!AG4 -> 56.9 | I4: =Luglio!AG4 -> 85.79 | J4: =Agosto!AG4 -> 298.8 | K4: =Settembre!AG4 -> 427.32 | L4: =Ottobre!AG4 -> 172.46 | M4: =Novembre!AG4 -> 255.98 | N4: =Dicembre!AG4 -> 360.01 | O4: =SUM(C4:N4) -> 2533.02
A5: Penny Market | C5: =Gennaio!AG5 -> 1.99 | D5: =Febbraio!AG5 -> 21.87 | E5: =Marzo!AG5 -> 70.52 | F5: =Aprile!AG5 -> 17.53 | G5: =Maggio!AG5 -> 60.64 | H5: =Giugno!AG5 -> 167.03 | I5: =Luglio!AG5 -> 134.79 | J5: =Agosto!AG5 -> 44.74 | K5: =Settembre!AG5 -> 15.21 | L5: =Ottobre!AG5 -> 10.8 | M5: =Novembre!AG5 -> 4.87 | N5: =Dicembre!AG5 -> 0 | O5: 549.99
C6: =Gennaio!AG6 -> 0 | D6: =Febbraio!AG6 -> 0 | E6: =Marzo!AG6 -> 0 | F6: =Aprile!AG6 -> 0 | G6: =Maggio!AG6 -> 0 | H6: =Giugno!AG6 -> 0 | I6: =Luglio!AG6 -> 0 | J6: =Agosto!AG6 -> 0 | K6: =Settembre!AG6 -> 0 | L6: =Ottobre!AG6 -> 0 | M6: =Novembre!AG6 -> 13.7 | N6: =Dicembre!AG6 -> 19.52 | O6: 33.22
A7: Mercato | C7: =Gennaio!AG7 -> 0 | D7: =Febbraio!AG7 -> 0 | E7: =Marzo!AG7 -> 0 | F7: =Aprile!AG7 -> 0 | G7: =Maggio!AG7 -> 0 | H7: =Giugno!AG7 -> 0 | I7: =Luglio!AG7 -> 35 | J7: =Agosto!AG7 -> 0 | K7: =Settembre!AG7 -> 0 | L7: =Ottobre!AG7 -> 0 | M7: =Novembre!AG7 -> 0 | N7: =Dicembre!AG7 -> 0 | O7: 35
A8: Altro (pizza, kebab, ...) | C8: =Gennaio!AG8 -> 3.95 | D8: =Febbraio!AG8 -> 49.3 | E8: =Marzo!AG8 -> 69.92 | F8: =Aprile!AG8 -> 87.35 | G8: =Maggio!AG8 -> 98.1 | H8: =Giugno!AG8 -> 118.95 | I8: =Luglio!AG8 -> 79.35 | J8: =Agosto!AG8 -> 146.8 | K8: =Settembre!AG8 -> 67.4 | L8: =Ottobre!AG8 -> 99 | M8: =Novembre!AG8 -> 77.15 | N8: =Dicembre!AG8 -> 108.5 | O8: 1005.77
A9: =IF(AND(OR(C39<>0,D39<>0,E39<>0,F39<>0,G39<>0,H39<>0,I39<>0,J39<>0,K39<>0,L39<>0,M39<>0,N39<>0),OR(C41<>0,D41<>0,E41<>0,F41<>0,G41<>0,H41<>0,I41<>0,J41<>0,K41<>0,L41<>0,M41<>0,N41<>0)),100*O9/SUM(C41:N41)/100,"") -> 0.2946972919 | B9: =IF(AND(ISNUMBER(O2),MOD(YEAR(TODAY()),4)=0,YEAR(TODAY())>O2), O9/366, IF(AND(ISNUMBER(O2),YEAR(TODAY())>O2), O9/365, IF(AND(ISNUMBER(O2),YEAR(TODAY())=O2),O9/(DATEDIF(DATE(O2,1,0),DATE(YEAR(TODAY()),MONTH(TODAY()),DAY(TODAY())), "D" )), "" ))) -> 11.3890411 | C9: =SUM(C4:C8) -> 129.36 | D9: =SUM(D4:D8) -> 178.62 | E9: 305.32 | F9: 397.55 | G9: 346.08 | H9: 342.88 | I9: 334.93 | J9: 490.34 | K9: 509.93 | L9: 282.26 | M9: 351.7 | N9: 488.03 | O9: =SUM(O4:O8) -> 4157
A11: Amazon (elettronica, mus. mp3, ...) | C11: =Gennaio!AG11 -> 284.53 | D11: =Febbraio!AG11 -> 0 | E11: =Marzo!AG11 -> 0 | F11: =Aprile!AG11 -> 222.38 | G11: =Maggio!AG11 -> 160.81 | H11: =Giugno!AG11 -> 245.58 | I11: =Luglio!AG11 -> 116.36 | J11: =Agosto!AG11 -> 66.02 | K11: =Settembre!AG11 -> 159.48 | L11: =Ottobre!AG11 -> 116.94 | M11: =Novembre!AG11 -> 179.79 | N11: =Dicembre!AG11 -> 351.23 | O11: =SUM(C11:N11) -> 1903.12
A12: Hardware & Software | C12: =Gennaio!AG12 -> 0 | D12: =Febbraio!AG12 -> 69.99 | E12: =Marzo!AG12 -> 19.99 | F12: =Aprile!AG12 -> 169.98 | G12: =Maggio!AG12 -> 230.37 | H12: =Giugno!AG12 -> 30.97 | I12: =Luglio!AG12 -> 0 | J12: =Agosto!AG12 -> 141.34 | K12: =Settembre!AG12 -> 0 | L12: =Ottobre!AG12 -> 0 | M12: =Novembre!AG12 -> 32 | N12: =Dicembre!AG12 -> 0 | O12: =SUM(C12:N12) -> 694.64
A13: Nuovi elettrodom., lamp. led, ... | C13: =Gennaio!AG13 -> 0 | D13: =Febbraio!AG13 -> 0 | E13: =Marzo!AG13 -> 0 | F13: =Aprile!AG13 -> 0 | G13: =Maggio!AG13 -> 0 | H13: =Giugno!AG13 -> 1128.97 | I13: =Luglio!AG13 -> 65.92 | J13: =Agosto!AG13 -> 0 | K13: =Settembre!AG13 -> 0 | L13: =Ottobre!AG13 -> 0 | M13: =Novembre!AG13 -> 0 | N13: =Dicembre!AG13 -> 0 | O13: =SUM(C13:N13) -> 1194.89
C14: =Gennaio!AG14 -> 0 | D14: =Febbraio!AG14 -> 0 | E14: =Marzo!AG14 -> 0 | F14: =Aprile!AG14 -> 0 | G14: =Maggio!AG14 -> 0 | H14: =Giugno!AG14 -> 0 | I14: =Luglio!AG14 -> 0 | J14: =Agosto!AG14 -> 0 | K14: =Settembre!AG14 -> 0 | L14: =Ottobre!AG14 -> 0 | M14: =Novembre!AG14 -> 0 | N14: =Dicembre!AG14 -> 0 | O14: =SUM(C14:N14) -> 0
A15: Altro (spese Webank, Aruba, ...) | C15: =Gennaio!AG15 -> 3 | D15: =Febbraio!AG15 -> 63.42 | E15: =Marzo!AG15 -> 3.6 | F15: =Aprile!AG15 -> 2 | G15: =Maggio!AG15 -> 0 | H15: =Giugno!AG15 -> 0.68 | I15: =Luglio!AG15 -> 3.6 | J15: =Agosto!AG15 -> 1 | K15: =Settembre!AG15 -> 4.6 | L15: =Ottobre!AG15 -> 0 | M15: =Novembre!AG15 -> 3 | N15: =Dicembre!AG15 -> 1 | O15: =SUM(C15:N15) -> 85.9
A16: =IF(AND(OR(C39<>0,D39<>0,E39<>0,F39<>0,G39<>0,H39<>0,I39<>0,J39<>0,K39<>0,L39<>0,M39<>0,N39<>0),OR(C41<>0,D41<>0,E41<>0,F41<>0,G41<>0,H41<>0,I41<>0,J41<>0,K41<>0,L41<>0,M41<>0,N41<>0)),100*O16/SUM(C41:N41)/100,"") -> 0.2749574649 | B16: =IF(AND(ISNUMBER(O2),MOD(YEAR(TODAY()),4)=0,YEAR(TODAY())>O2), O16/366, IF(AND(ISNUMBER(O2),YEAR(TODAY())>O2), O16/365, IF(AND(ISNUMBER(O2),YEAR(TODAY())=O2),O16/(DATEDIF(DATE(O2,1,0),DATE(YEAR(TODAY()),MONTH(TODAY()),DAY(TODAY())), "D" )), "" ))) -> 10.62616438 | C16: =SUM(C11:C15) -> 287.53 | D16: =SUM(D11:D15) -> 133.41 | E16: 23.59 | F16: 394.36 | G16: 391.18 | H16: 1406.2 | I16: 185.88 | J16: 208.36 | K16: 164.08 | L16: 116.94 | M16: 214.79 | N16: 352.23 | O16: =SUM(O11:O15) -> 3878.55
A18: Generi non alim. (sapone, ...) | C18: =Gennaio!AG18 -> 28.68 | D18: =Febbraio!AG18 -> 22.9 | E18: =Marzo!AG18 -> 39.97 | F18: =Aprile!AG18 -> 97.37 | G18: =Maggio!AG18 -> 6.86 | H18: =Giugno!AG18 -> 0.2 | I18: =Luglio!AG18 -> 63.34 | J18: =Agosto!AG18 -> 7.94 | K18: =Settembre!AG18 -> 49.03 | L18: =Ottobre!AG18 -> 3.84 | M18: =Novembre!AG18 -> 62.96 | N18: =Dicembre!AG18 -> 3.18 | O18: 386.27
A19: Parrucchiere | C19: =Gennaio!AG19 -> 20 | D19: =Febbraio!AG19 -> 0 | E19: =Marzo!AG19 -> 21 | F19: =Aprile!AG19 -> 0 | G19: =Maggio!AG19 -> 0 | H19: =Giugno!AG19 -> 22 | I19: =Luglio!AG19 -> 0 | J19: =Agosto!AG19 -> 0 | K19: =Settembre!AG19 -> 21.1 | L19: =Ottobre!AG19 -> 0 | M19: =Novembre!AG19 -> 22 | N19: =Dicembre!AG19 -> 0 | O19: =SUM(C19:N19) -> 106.1
A20: Abbigliamento (Bonprix, Zalando, ...) | C20: =Gennaio!AG20 -> 380.37 | D20: =Febbraio!AG20 -> 0 | E20: =Marzo!AG20 -> 0 | F20: =Aprile!AG20 -> 0 | G20: =Maggio!AG20 -> 0 | H20: =Giugno!AG20 -> 0 | I20: =Luglio!AG20 -> 0 | J20: =Agosto!AG20 -> 0 | K20: =Settembre!AG20 -> 0 | L20: =Ottobre!AG20 -> 0 | M20: =Novembre!AG20 -> 69.97 | N20: =Dicembre!AG20 -> 0 | O20: =SUM(C20:N20) -> 450.34
A21: Cartoleria e libri | C21: =Gennaio!AG21 -> 0 | D21: =Febbraio!AG21 -> 0 | E21: =Marzo!AG21 -> 0 | F21: =Aprile!AG21 -> 0 | G21: =Maggio!AG21 -> 0 | H21: =Giugno!AG21 -> 0 | I21: =Luglio!AG21 -> 0 | J21: =Agosto!AG21 -> 0 | K21: =Settembre!AG21 -> 38.37 | L21: =Ottobre!AG21 -> 0 | M21: =Novembre!AG21 -> 0 | N21: =Dicembre!AG21 -> 0 | O21: =SUM(C21:N21) -> 38.37
A22: Altro (spese mediche, ...) | C22: =Gennaio!AG22 -> 0 | D22: =Febbraio!AG22 -> 0 | E22: =Marzo!AG22 -> 0 | F22: =Aprile!AG22 -> 27.8 | G22: =Maggio!AG22 -> 0 | H22: =Giugno!AG22 -> 0 | I22: =Luglio!AG22 -> 0 | J22: =Agosto!AG22 -> 0 | K22: =Settembre!AG22 -> 13.42 | L22: =Ottobre!AG22 -> 0 | M22: =Novembre!AG22 -> 0 | N22: =Dicembre!AG22 -> 0 | O22: =SUM(C22:N22) -> 41.22
A23: =IF(AND(OR(C39<>0,D39<>0,E39<>0,F39<>0,G39<>0,H39<>0,I39<>0,J39<>0,K39<>0,L39<>0,M39<>0,N39<>0),OR(C41<>0,D41<>0,E41<>0,F41<>0,G41<>0,H41<>0,I41<>0,J41<>0,K41<>0,L41<>0,M41<>0,N41<>0)),100*O23/SUM(C41:N41)/100,"") -> 0.07247270665 | B23: =IF(AND(ISNUMBER(O2),MOD(YEAR(TODAY()),4)=0,YEAR(TODAY())>O2), O23/366, IF(AND(ISNUMBER(O2),YEAR(TODAY())>O2), O23/365, IF(AND(ISNUMBER(O2),YEAR(TODAY())=O2),O23/(DATEDIF(DATE(O2,1,0),DATE(YEAR(TODAY()),MONTH(TODAY()),DAY(TODAY())), "D" )), "" ))) -> 2.800821918 | C23: =SUM(C18:C22) -> 429.05 | D23: =SUM(D18:D22) -> 22.9 | E23: 60.97 | F23: 125.17 | G23: 6.86 | H23: 22.2 | I23: 63.34 | J23: 7.94 | K23: 121.92 | L23: 3.84 | M23: 154.93 | N23: 3.18 | O23: =SUM(O18:O22) -> 1022.3
A25: Elettricità | C25: =Gennaio!AG25 -> 0 | D25: =Febbraio!AG25 -> 20.27 | E25: =Marzo!AG25 -> 21.02 | F25: =Aprile!AG25 -> 20.55 | G25: =Maggio!AG25 -> 40.79 | H25: =Giugno!AG25 -> 20.57 | I25: =Luglio!AG25 -> 0 | J25: =Agosto!AG25 -> 20.81 | K25: =Settembre!AG25 -> 45.43 | L25: =Ottobre!AG25 -> 0 | M25: =Novembre!AG25 -> 21.09 | N25: =Dicembre!AG25 -> 40.22 | O25: =SUM(C25:N25) -> 250.75
A26: Gas | C26: =Gennaio!AG26 -> 0 | D26: =Febbraio!AG26 -> 0 | E26: =Marzo!AG26 -> 0 | F26: =Aprile!AG26 -> 75.91 | G26: =Maggio!AG26 -> 0 | H26: =Giugno!AG26 -> 0 | I26: =Luglio!AG26 -> 0 | J26: =Agosto!AG26 -> 54.33 | K26: =Settembre!AG26 -> 0 | L26: =Ottobre!AG26 -> 0 | M26: =Novembre!AG26 -> 0 | N26: =Dicembre!AG26 -> 41.12 | O26: 171.36
A27: Connessione fibra + cellulare | C27: =Gennaio!AG27 -> 34.89 | D27: =Febbraio!AG27 -> 28.89 | E27: =Marzo!AG27 -> 48.87 | F27: =Aprile!AG27 -> 38.88 | G27: =Maggio!AG27 -> 28.89 | H27: =Giugno!AG27 -> 48.87 | I27: =Luglio!AG27 -> 38.88 | J27: =Agosto!AG27 -> 30.89 | K27: =Settembre!AG27 -> 48.87 | L27: =Ottobre!AG27 -> 38.88 | M27: =Novembre!AG27 -> 28.89 | N27: =Dicembre!AG27 -> 48.87 | O27: 464.57
A28: Spese condominiali | C28: =Gennaio!AG28 -> 0 | D28: =Febbraio!AG28 -> 0 | E28: =Marzo!AG28 -> 775.03 | F28: =Aprile!AG28 -> 0 | G28: =Maggio!AG28 -> 0 | H28: =Giugno!AG28 -> 790.13 | I28: =Luglio!AG28 -> 0 | J28: =Agosto!AG28 -> 0 | K28: =Settembre!AG28 -> 790.13 | L28: =Ottobre!AG28 -> 0 | M28: =Novembre!AG28 -> 0 | N28: =Dicembre!AG28 -> 1126.04 | O28: 3481.33
A29: Altro (tassa rifiuti, ...) | C29: =Gennaio!AG29 -> 0 | D29: =Febbraio!AG29 -> 0 | E29: =Marzo!AG29 -> 0 | F29: =Aprile!AG29 -> 0 | G29: =Maggio!AG29 -> 0 | H29: =Giugno!AG29 -> 62 | I29: =Luglio!AG29 -> 0 | J29: =Agosto!AG29 -> 0 | K29: =Settembre!AG29 -> 0 | L29: =Ottobre!AG29 -> 0 | M29: =Novembre!AG29 -> 0 | N29: =Dicembre!AG29 -> 61 | O29: 123
A30: =IF(AND(OR(C39<>0,D39<>0,E39<>0,F39<>0,G39<>0,H39<>0,I39<>0,J39<>0,K39<>0,L39<>0,M39<>0,N39<>0),OR(C41<>0,D41<>0,E41<>0,F41<>0,G41<>0,H41<>0,I41<>0,J41<>0,K41<>0,L41<>0,M41<>0,N41<>0)),100*O30/SUM(C41:N41)/100,"") -> 0.3183758684 | B30: =IF(AND(ISNUMBER(O2),MOD(YEAR(TODAY()),4)=0,YEAR(TODAY())>O2), O30/366, IF(AND(ISNUMBER(O2),YEAR(TODAY())>O2), O30/365, IF(AND(ISNUMBER(O2),YEAR(TODAY())=O2),O30/(DATEDIF(DATE(O2,1,0),DATE(YEAR(TODAY()),MONTH(TODAY()),DAY(TODAY())), "D" )), "" ))) -> 12.30413699 | C30: =SUM(C25:C29) -> 34.89 | D30: =SUM(D25:D29) -> 49.16 | E30: 844.92 | F30: 135.34 | G30: 69.68 | H30: 921.57 | I30: 38.88 | J30: 106.03 | K30: 884.43 | L30: 38.88 | M30: 49.98 | N30: 1317.25 | O30: =SUM(O25:O29) -> 4491.01
A32: Benzina e A.T.M. | C32: =Gennaio!AG32 -> 129.83 | D32: =Febbraio!AG32 -> 60 | E32: =Marzo!AG32 -> 115 | F32: =Aprile!AG32 -> 130 | G32: =Maggio!AG32 -> 50 | H32: =Giugno!AG32 -> 74.8 | I32: =Luglio!AG32 -> 189.8 | J32: =Agosto!AG32 -> 10 | K32: =Settembre!AG32 -> 80 | L32: =Ottobre!AG32 -> 50 | M32: =Novembre!AG32 -> 50 | N32: =Dicembre!AG32 -> 100 | O32: =SUM(C32:N32) -> 1039.43
A33: Spese e manutenzione automobile | C33: =Gennaio!AG33 -> 0 | D33: =Febbraio!AG33 -> 379.81 | E33: =Marzo!AG33 -> 0 | F33: =Aprile!AG33 -> 0 | G33: =Maggio!AG33 -> 100 | H33: =Giugno!AG33 -> 0 | I33: =Luglio!AG33 -> 0 | J33: =Agosto!AG33 -> 74.9 | K33: =Settembre!AG33 -> 210 | L33: =Ottobre!AG33 -> 0 | M33: =Novembre!AG33 -> 0 | N33: =Dicembre!AG33 -> 0 | O33: 764.71
A34: Spese ripar. casa (idraulico, ...) | C34: =Gennaio!AG34 -> 0 | D34: =Febbraio!AG34 -> 0 | E34: =Marzo!AG34 -> 0 | F34: =Aprile!AG34 -> 0 | G34: =Maggio!AG34 -> 60 | H34: =Giugno!AG34 -> 0 | I34: =Luglio!AG34 -> 0 | J34: =Agosto!AG34 -> 0 | K34: =Settembre!AG34 -> 0 | L34: =Ottobre!AG34 -> 240 | M34: =Novembre!AG34 -> 0 | N34: =Dicembre!AG34 -> 0 | O34: 300
C35: =Gennaio!AG35 -> 0 | D35: =Febbraio!AG35 -> 0 | E35: =Marzo!AG35 -> 0 | F35: =Aprile!AG35 -> 0 | G35: =Maggio!AG35 -> 0 | H35: =Giugno!AG35 -> 0 | I35: =Luglio!AG35 -> 0 | J35: =Agosto!AG35 -> 0 | K35: =Settembre!AG35 -> 0 | L35: =Ottobre!AG35 -> 0 | M35: =Novembre!AG35 -> 0 | N35: =Dicembre!AG35 -> 0 | O35: 0
A36: Altro | C36: =Gennaio!AG36 -> 0 | D36: =Febbraio!AG36 -> 0 | E36: =Marzo!AG36 -> 6.5 | F36: =Aprile!AG36 -> 0 | G36: =Maggio!AG36 -> 0 | H36: =Giugno!AG36 -> 0 | I36: =Luglio!AG36 -> 0 | J36: =Agosto!AG36 -> 0 | K36: =Settembre!AG36 -> 0 | L36: =Ottobre!AG36 -> 0 | M36: =Novembre!AG36 -> 0 | N36: =Dicembre!AG36 -> 0 | O36: 6.5
A37: =IF(AND(OR(C39<>0,D39<>0,E39<>0,F39<>0,G39<>0,H39<>0,I39<>0,J39<>0,K39<>0,L39<>0,M39<>0,N39<>0),OR(C41<>0,D41<>0,E41<>0,F41<>0,G41<>0,H41<>0,I41<>0,J41<>0,K41<>0,L41<>0,M41<>0,N41<>0)),100*O37/SUM(C41:N41)/100,"") -> 0.149627109 | B37: =IF(AND(ISNUMBER(O2),MOD(YEAR(TODAY()),4)=0,YEAR(TODAY())>O2), O37/366, IF(AND(ISNUMBER(O2),YEAR(TODAY())>O2), O37/365, IF(AND(ISNUMBER(O2),YEAR(TODAY())=O2),O37/(DATEDIF(DATE(O2,1,0),DATE(YEAR(TODAY()),MONTH(TODAY()),DAY(TODAY())), "D" )), "" ))) -> 5.782575342 | C37: =SUM(C32:C36) -> 129.83 | D37: =SUM(D32:D36) -> 439.81 | E37: 121.5 | F37: 130 | G37: 210 | H37: 74.8 | I37: 189.8 | J37: 84.9 | K37: 290 | L37: 290 | M37: 50 | N37: 100 | O37: =SUM(O32:O36) -> 2110.64
A39: SPESA MENSILE | C39: =SUM(C9,C16,C23,C30,C37) -> 1010.66 | D39: =SUM(D9,D16,D23,D30,D37) -> 823.9 | E39: 1356.3 | F39: 1182.42 | G39: 1023.8 | H39: 2767.65 | I39: 812.83 | J39: 897.57 | K39: 1970.36 | L39: 731.92 | M39: 821.4 | N39: 2260.69 | O39: =SUM(O9,O16,O23,O30,O37) -> 15659.5
A41: STIPENDIO MENSILE | C41: 1182 | D41: 944 | E41: 1054 | F41: 1306 | G41: 1184 | H41: 1149 | I41: 1224 | J41: 1207 | K41: 1180 | L41: 1221 | M41: 1129 | N41: 1326 | O41: =(SUM(C41:N41)-O39) -> -1553.5

Sheet STAMPA - Riepilogo
A1: ='Riepilogo Annuale'!A1:O1 -> CONTABILITÀ ANNUALE
A2: ='Riepilogo Annuale'!A2 -> 1.110130441 | B2: ='Riepilogo Annuale'!B2 -> 0 | C2: ='Riepilogo Annuale'!C2 -> GEN | D2: ='Riepilogo Annuale'!D2 -> FEB | E2: ='Riepilogo Annuale'!E2 -> MAR | F2: ='Riepilogo Annuale'!F2 -> APR | G2: ='Riepilogo Annuale'!G2 -> MAG | H2: ='Riepilogo Annuale'!H2 -> GIU | I2: ='Riepilogo Annuale'!I2 -> LUG | J2: ='Riepilogo Annuale'!J2 -> AGO | K2: ='Riepilogo Annuale'!K2 -> SET | L2: ='Riepilogo Annuale'!L2 -> OTT | M2: ='Riepilogo Annuale'!M2 -> NOV | N2: ='Riepilogo Annuale'!N2 -> DIC | O2: ='Riepilogo Annuale'!O2 -> 2022
A4: =Gennaio!A4 -> Esselunga | C4: ='Riepilogo Annuale'!C4 -> 123.42 | D4: ='Riepilogo Annuale'!D4 -> 107.45 | E4: ='Riepilogo Annuale'!E4 -> 164.88 | F4: ='Riepilogo Annuale'!F4 -> 292.67 | G4: ='Riepilogo Annuale'!G4 -> 187.34 | H4: ='Riepilogo Annuale'!H4 -> 56.9 | I4: ='Riepilogo Annuale'!I4 -> 85.79 | J4: ='Riepilogo Annuale'!J4 -> 298.8 | K4: ='Riepilogo Annuale'!K4 -> 427.32 | L4: ='Riepilogo Annuale'!L4 -> 172.46 | M4: ='Riepilogo Annuale'!M4 -> 255.98 | N4: ='Riepilogo Annuale'!N4 -> 360.01 | O4: ='Riepilogo Annuale'!O4 -> 2533.02
A5: =Gennaio!A5 -> Penny Market | C5: ='Riepilogo Annuale'!C5 -> 1.99 | D5: ='Riepilogo Annuale'!D5 -> 21.87 | E5: ='Riepilogo Annuale'!E5 -> 70.52 | F5: ='Riepilogo Annuale'!F5 -> 17.53 | G5: ='Riepilogo Annuale'!G5 -> 60.64 | H5: ='Riepilogo Annuale'!H5 -> 167.03 | I5: ='Riepilogo Annuale'!I5 -> 134.79 | J5: ='Riepilogo Annuale'!J5 -> 44.74 | K5: ='Riepilogo Annuale'!K5 -> 15.21 | L5: ='Riepilogo Annuale'!L5 -> 10.8 | M5: ='Riepilogo Annuale'!M5 -> 4.87 | N5: ='Riepilogo Annuale'!N5 -> 0 | O5: ='Riepilogo Annuale'!O5 -> 549.99
A6: =Gennaio!A6 -> 0 | C6: ='Riepilogo Annuale'!C6 -> 0 | D6: ='Riepilogo Annuale'!D6 -> 0 | E6: ='Riepilogo Annuale'!E6 -> 0 | F6: ='Riepilogo Annuale'!F6 -> 0 | G6: ='Riepilogo Annuale'!G6 -> 0 | H6: ='Riepilogo Annuale'!H6 -> 0 | I6: ='Riepilogo Annuale'!I6 -> 0 | J6: ='Riepilogo Annuale'!J6 -> 0 | K6: ='Riepilogo Annuale'!K6 -> 0 | L6: ='Riepilogo Annuale'!L6 -> 0 | M6: ='Riepilogo Annuale'!M6 -> 13.7 | N6: ='Riepilogo Annuale'!N6 -> 19.52 | O6: ='Riepilogo Annuale'!O6 -> 33.22
A7: =Gennaio!A7 -> Mercato | C7: ='Riepilogo Annuale'!C7 -> 0 | D7: ='Riepilogo Annuale'!D7 -> 0 | E7: ='Riepilogo Annuale'!E7 -> 0 | F7: ='Riepilogo Annuale'!F7 -> 0 | G7: ='Riepilogo Annuale'!G7 -> 0 | H7: ='Riepilogo Annuale'!H7 -> 0 | I7: ='Riepilogo Annuale'!I7 -> 35 | J7: ='Riepilogo Annuale'!J7 -> 0 | K7: ='Riepilogo Annuale'!K7 -> 0 | L7: ='Riepilogo Annuale'!L7 -> 0 | M7: ='Riepilogo Annuale'!M7 -> 0 | N7: ='Riepilogo Annuale'!N7 -> 0 | O7: ='Riepilogo Annuale'!O7 -> 35
A8: =Gennaio!A8 -> Altro (pizza, kebab, ...) | C8: ='Riepilogo Annuale'!C8 -> 3.95 | D8: ='Riepilogo Annuale'!D8 -> 49.3 | E8: ='Riepilogo Annuale'!E8 -> 69.92 | F8: ='Riepilogo Annuale'!F8 -> 87.35 | G8: ='Riepilogo Annuale'!G8 -> 98.1 | H8: ='Riepilogo Annuale'!H8 -> 118.95 | I8: ='Riepilogo Annuale'!I8 -> 79.35 | J8: ='Riepilogo Annuale'!J8 -> 146.8 | K8: ='Riepilogo Annuale'!K8 -> 67.4 | L8: ='Riepilogo Annuale'!L8 -> 99 | M8: ='Riepilogo Annuale'!M8 -> 77.15 | N8: ='Riepilogo Annuale'!N8 -> 108.5 | O8: ='Riepilogo Annuale'!O8 -> 1005.77
A9: ='Riepilogo Annuale'!A9 -> 0.2946972919 | B9: ='Riepilogo Annuale'!B9 -> 11.3890411 | C9: ='Riepilogo Annuale'!C9 -> 129.36 | D9: ='Riepilogo Annuale'!D9 -> 178.62 | E9: ='Riepilogo Annuale'!E9 -> 305.32 | F9: ='Riepilogo Annuale'!F9 -> 397.55 | G9: ='Riepilogo Annuale'!G9 -> 346.08 | H9: ='Riepilogo Annuale'!H9 -> 342.88 | I9: ='Riepilogo Annuale'!I9 -> 334.93 | J9: ='Riepilogo Annuale'!J9 -> 490.34 | K9: ='Riepilogo Annuale'!K9 -> 509.93 | L9: ='Riepilogo Annuale'!L9 -> 282.26 | M9: ='Riepilogo Annuale'!M9 -> 351.7 | N9: ='Riepilogo Annuale'!N9 -> 488.03 | O9: ='Riepilogo Annuale'!O9 -> 4157
A11: ='Riepilogo Annuale'!A11 -> Amazon (elettronica, mus. mp3, ...) | C11: ='Riepilogo Annuale'!C11 -> 284.53 | D11: ='Riepilogo Annuale'!D11 -> 0 | E11: ='Riepilogo Annuale'!E11 -> 0 | F11: ='Riepilogo Annuale'!F11 -> 222.38 | G11: ='Riepilogo Annuale'!G11 -> 160.81 | H11: ='Riepilogo Annuale'!H11 -> 245.58 | I11: ='Riepilogo Annuale'!I11 -> 116.36 | J11: ='Riepilogo Annuale'!J11 -> 66.02 | K11: ='Riepilogo Annuale'!K11 -> 159.48 | L11: ='Riepilogo Annuale'!L11 -> 116.94 | M11: ='Riepilogo Annuale'!M11 -> 179.79 | N11: ='Riepilogo Annuale'!N11 -> 351.23 | O11: ='Riepilogo Annuale'!O11 -> 1903.12
A12: ='Riepilogo Annuale'!A12 -> Hardware & Software | C12: ='Riepilogo Annuale'!C12 -> 0 | D12: ='Riepilogo Annuale'!D12 -> 69.99 | E12: ='Riepilogo Annuale'!E12 -> 19.99 | F12: ='Riepilogo Annuale'!F12 -> 169.98 | G12: ='Riepilogo Annuale'!G12 -> 230.37 | H12: ='Riepilogo Annuale'!H12 -> 30.97 | I12: ='Riepilogo Annuale'!I12 -> 0 | J12: ='Riepilogo Annuale'!J12 -> 141.34 | K12: ='Riepilogo Annuale'!K12 -> 0 | L12: ='Riepilogo Annuale'!L12 -> 0 | M12: ='Riepilogo Annuale'!M12 -> 32 | N12: ='Riepilogo Annuale'!N12 -> 0 | O12: ='Riepilogo Annuale'!O12 -> 694.64
A13: ='Riepilogo Annuale'!A13 -> Nuovi elettrodom., lamp. led, ... | C13: ='Riepilogo Annuale'!C13 -> 0 | D13: ='Riepilogo Annuale'!D13 -> 0 | E13: ='Riepilogo Annuale'!E13 -> 0 | F13: ='Riepilogo Annuale'!F13 -> 0 | G13: ='Riepilogo Annuale'!G13 -> 0 | H13: ='Riepilogo Annuale'!H13 -> 1128.97 | I13: ='Riepilogo Annuale'!I13 -> 65.92 | J13: ='Riepilogo Annuale'!J13 -> 0 | K13: ='Riepilogo Annuale'!K13 -> 0 | L13: ='Riepilogo Annuale'!L13 -> 0 | M13: ='Riepilogo Annuale'!M13 -> 0 | N13: ='Riepilogo Annuale'!N13 -> 0 | O13: ='Riepilogo Annuale'!O13 -> 1194.89
A14: ='Riepilogo Annuale'!A14 -> 0 | C14: ='Riepilogo Annuale'!C14 -> 0 | D14: ='Riepilogo Annuale'!D14 -> 0 | E14: ='Riepilogo Annuale'!E14 -> 0 | F14: ='Riepilogo Annuale'!F14 -> 0 | G14: ='Riepilogo Annuale'!G14 -> 0 | H14: ='Riepilogo Annuale'!H14 -> 0 | I14: ='Riepilogo Annuale'!I14 -> 0 | J14: ='Riepilogo Annuale'!J14 -> 0 | K14: ='Riepilogo Annuale'!K14 -> 0 | L14: ='Riepilogo Annuale'!L14 -> 0 | M14: ='Riepilogo Annuale'!M14 -> 0 | N14: ='Riepilogo Annuale'!N14 -> 0 | O14: ='Riepilogo Annuale'!O14 -> 0
A15: ='Riepilogo Annuale'!A15 -> Altro (spese Webank, Aruba, ...) | C15: ='Riepilogo Annuale'!C15 -> 3 | D15: ='Riepilogo Annuale'!D15 -> 63.42 | E15: ='Riepilogo Annuale'!E15 -> 3.6 | F15: ='Riepilogo Annuale'!F15 -> 2 | G15: ='Riepilogo Annuale'!G15 -> 0 | H15: ='Riepilogo Annuale'!H15 -> 0.68 | I15: ='Riepilogo Annuale'!I15 -> 3.6 | J15: ='Riepilogo Annuale'!J15 -> 1 | K15: ='Riepilogo Annuale'!K15 -> 4.6 | L15: ='Riepilogo Annuale'!L15 -> 0 | M15: ='Riepilogo Annuale'!M15 -> 3 | N15: ='Riepilogo Annuale'!N15 -> 1 | O15: ='Riepilogo Annuale'!O15 -> 85.9
A16: ='Riepilogo Annuale'!A16 -> 0.2749574649 | B16: ='Riepilogo Annuale'!B16 -> 10.62616438 | C16: ='Riepilogo Annuale'!C16 -> 287.53 | D16: ='Riepilogo Annuale'!D16 -> 133.41 | E16: ='Riepilogo Annuale'!E16 -> 23.59 | F16: ='Riepilogo Annuale'!F16 -> 394.36 | G16: ='Riepilogo Annuale'!G16 -> 391.18 | H16: ='Riepilogo Annuale'!H16 -> 1406.2 | I16: ='Riepilogo Annuale'!I16 -> 185.88 | J16: ='Riepilogo Annuale'!J16 -> 208.36 | K16: ='Riepilogo Annuale'!K16 -> 164.08 | L16: ='Riepilogo Annuale'!L16 -> 116.94 | M16: ='Riepilogo Annuale'!M16 -> 214.79 | N16: ='Riepilogo Annuale'!N16 -> 352.23 | O16: ='Riepilogo Annuale'!O16 -> 3878.55
A18: ='Riepilogo Annuale'!A18 -> Generi non alim. (sapone, ...) | C18: ='Riepilogo Annuale'!C18 -> 28.68 | D18: ='Riepilogo Annuale'!D18 -> 22.9 | E18: ='Riepilogo Annuale'!E18 -> 39.97 | F18: ='Riepilogo Annuale'!F18 -> 97.37 | G18: ='Riepilogo Annuale'!G18 -> 6.86 | H18: ='Riepilogo Annuale'!H18 -> 0.2 | I18: ='Riepilogo Annuale'!I18 -> 63.34 | J18: ='Riepilogo Annuale'!J18 -> 7.94 | K18: ='Riepilogo Annuale'!K18 -> 49.03 | L18: ='Riepilogo Annuale'!L18 -> 3.84 | M18: ='Riepilogo Annuale'!M18 -> 62.96 | N18: ='Riepilogo Annuale'!N18 -> 3.18 | O18: ='Riepilogo Annuale'!O18 -> 386.27
A19: ='Riepilogo Annuale'!A19 -> Parrucchiere | C19: ='Riepilogo Annuale'!C19 -> 20 | D19: ='Riepilogo Annuale'!D19 -> 0 | E19: ='Riepilogo Annuale'!E19 -> 21 | F19: ='Riepilogo Annuale'!F19 -> 0 | G19: ='Riepilogo Annuale'!G19 -> 0 | H19: ='Riepilogo Annuale'!H19 -> 22 | I19: ='Riepilogo Annuale'!I19 -> 0 | J19: ='Riepilogo Annuale'!J19 -> 0 | K19: ='Riepilogo Annuale'!K19 -> 21.1 | L19: ='Riepilogo Annuale'!L19 -> 0 | M19: ='Riepilogo Annuale'!M19 -> 22 | N19: ='Riepilogo Annuale'!N19 -> 0 | O19: ='Riepilogo Annuale'!O19 -> 106.1
A20: ='Riepilogo Annuale'!A20 -> Abbigliamento (Bonprix, Zalando, ...) | C20: ='Riepilogo Annuale'!C20 -> 380.37 | D20: ='Riepilogo Annuale'!D20 -> 0 | E20: ='Riepilogo Annuale'!E20 -> 0 | F20: ='Riepilogo Annuale'!F20 -> 0 | G20: ='Riepilogo Annuale'!G20 -> 0 | H20: ='Riepilogo Annuale'!H20 -> 0 | I20: ='Riepilogo Annuale'!I20 -> 0 | J20: ='Riepilogo Annuale'!J20 -> 0 | K20: ='Riepilogo Annuale'!K20 -> 0 | L20: ='Riepilogo Annuale'!L20 -> 0 | M20: ='Riepilogo Annuale'!M20 -> 69.97 | N20: ='Riepilogo Annuale'!N20 -> 0 | O20: ='Riepilogo Annuale'!O20 -> 450.34
A21: ='Riepilogo Annuale'!A21 -> Cartoleria e libri | C21: ='Riepilogo Annuale'!C21 -> 0 | D21: ='Riepilogo Annuale'!D21 -> 0 | E21: ='Riepilogo Annuale'!E21 -> 0 | F21: ='Riepilogo Annuale'!F21 -> 0 | G21: ='Riepilogo Annuale'!G21 -> 0 | H21: ='Riepilogo Annuale'!H21 -> 0 | I21: ='Riepilogo Annuale'!I21 -> 0 | J21: ='Riepilogo Annuale'!J21 -> 0 | K21: ='Riepilogo Annuale'!K21 -> 38.37 | L21: ='Riepilogo Annuale'!L21 -> 0 | M21: ='Riepilogo Annuale'!M21 -> 0 | N21: ='Riepilogo Annuale'!N21 -> 0 | O21: ='Riepilogo Annuale'!O21 -> 38.37
A22: ='Riepilogo Annuale'!A22 -> Altro (spese mediche, ...) | C22: ='Riepilogo Annuale'!C22 -> 0 | D22: ='Riepilogo Annuale'!D22 -> 0 | E22: ='Riepilogo Annuale'!E22 -> 0 | F22: ='Riepilogo Annuale'!F22 -> 27.8 | G22: ='Riepilogo Annuale'!G22 -> 0 | H22: ='Riepilogo Annuale'!H22 -> 0 | I22: ='Riepilogo Annuale'!I22 -> 0 | J22: ='Riepilogo Annuale'!J22 -> 0 | K22: ='Riepilogo Annuale'!K22 -> 13.42 | L22: ='Riepilogo Annuale'!L22 -> 0 | M22: ='Riepilogo Annuale'!M22 -> 0 | N22: ='Riepilogo Annuale'!N22 -> 0 | O22: ='Riepilogo Annuale'!O22 -> 41.22
A23: ='Riepilogo Annuale'!A23 -> 0.07247270665 | B23: ='Riepilogo Annuale'!B23 -> 2.800821918 | C23: ='Riepilogo Annuale'!C23 -> 429.05 | D23: ='Riepilogo Annuale'!D23 -> 22.9 | E23: ='Riepilogo Annuale'!E23 -> 60.97 | F23: ='Riepilogo Annuale'!F23 -> 125.17 | G23: ='Riepilogo Annuale'!G23 -> 6.86 | H23: ='Riepilogo Annuale'!H23 -> 22.2 | I23: ='Riepilogo Annuale'!I23 -> 63.34 | J23: ='Riepilogo Annuale'!J23 -> 7.94 | K23: ='Riepilogo Annuale'!K23 -> 121.92 | L23: ='Riepilogo Annuale'!L23 -> 3.84 | M23: ='Riepilogo Annuale'!M23 -> 154.93 | N23: ='Riepilogo Annuale'!N23 -> 3.18 | O23: ='Riepilogo Annuale'!O23 -> 1022.3
A25: ='Riepilogo Annuale'!A25 -> Elettricità | C25: ='Riepilogo Annuale'!C25 -> 0 | D25: ='Riepilogo Annuale'!D25 -> 20.27 | E25: ='Riepilogo Annuale'!E25 -> 21.02 | F25: ='Riepilogo Annuale'!F25 -> 20.55 | G25: ='Riepilogo Annuale'!G25 -> 40.79 | H25: ='Riepilogo Annuale'!H25 -> 20.57 | I25: ='Riepilogo Annuale'!I25 -> 0 | J25: ='Riepilogo Annuale'!J25 -> 20.81 | K25: ='Riepilogo Annuale'!K25 -> 45.43 | L25: ='Riepilogo Annuale'!L25 -> 0 | M25: ='Riepilogo Annuale'!M25 -> 21.09 | N25: ='Riepilogo Annuale'!N25 -> 40.22 | O25: ='Riepilogo Annuale'!O25 -> 250.75
A26: ='Riepilogo Annuale'!A26 -> Gas | C26: ='Riepilogo Annuale'!C26 -> 0 | D26: ='Riepilogo Annuale'!D26 -> 0 | E26: ='Riepilogo Annuale'!E26 -> 0 | F26: ='Riepilogo Annuale'!F26 -> 75.91 | G26: ='Riepilogo Annuale'!G26 -> 0 | H26: ='Riepilogo Annuale'!H26 -> 0 | I26: ='Riepilogo Annuale'!I26 -> 0 | J26: ='Riepilogo Annuale'!J26 -> 54.33 | K26: ='Riepilogo Annuale'!K26 -> 0 | L26: ='Riepilogo Annuale'!L26 -> 0 | M26: ='Riepilogo Annuale'!M26 -> 0 | N26: ='Riepilogo Annuale'!N26 -> 41.12 | O26: ='Riepilogo Annuale'!O26 -> 171.36
A27: ='Riepilogo Annuale'!A27 -> Connessione fibra + cellulare | C27: ='Riepilogo Annuale'!C27 -> 34.89 | D27: ='Riepilogo Annuale'!D27 -> 28.89 | E27: ='Riepilogo Annuale'!E27 -> 48.87 | F27: ='Riepilogo Annuale'!F27 -> 38.88 | G27: ='Riepilogo Annuale'!G27 -> 28.89 | H27: ='Riepilogo Annuale'!H27 -> 48.87 | I27: ='Riepilogo Annuale'!I27 -> 38.88 | J27: ='Riepilogo Annuale'!J27 -> 30.89 | K27: ='Riepilogo Annuale'!K27 -> 48.87 | L27: ='Riepilogo Annuale'!L27 -> 38.88 | M27: ='Riepilogo Annuale'!M27 -> 28.89 | N27: ='Riepilogo Annuale'!N27 -> 48.87 | O27: ='Riepilogo Annuale'!O27 -> 464.57
A28: ='Riepilogo Annuale'!A28 -> Spese condominiali | C28: ='Riepilogo Annuale'!C28 -> 0 | D28: ='Riepilogo Annuale'!D28 -> 0 | E28: ='Riepilogo Annuale'!E28 -> 775.03 | F28: ='Riepilogo Annuale'!F28 -> 0 | G28: ='Riepilogo Annuale'!G28 -> 0 | H28: ='Riepilogo Annuale'!H28 -> 790.13 | I28: ='Riepilogo Annuale'!I28 -> 0 | J28: ='Riepilogo Annuale'!J28 -> 0 | K28: ='Riepilogo Annuale'!K28 -> 790.13 | L28: ='Riepilogo Annuale'!L28 -> 0 | M28: ='Riepilogo Annuale'!M28 -> 0 | N28: ='Riepilogo Annuale'!N28 -> 1126.04 | O28: ='Riepilogo Annuale'!O28 -> 3481.33
A29: ='Riepilogo Annuale'!A29 -> Altro (tassa rifiuti, ...) | C29: ='Riepilogo Annuale'!C29 -> 0 | D29: ='Riepilogo Annuale'!D29 -> 0 | E29: ='Riepilogo Annuale'!E29 -> 0 | F29: ='Riepilogo Annuale'!F29 -> 0 | G29: ='Riepilogo Annuale'!G29 -> 0 | H29: ='Riepilogo Annuale'!H29 -> 62 | I29: ='Riepilogo Annuale'!I29 -> 0 | J29: ='Riepilogo Annuale'!J29 -> 0 | K29: ='Riepilogo Annuale'!K29 -> 0 | L29: ='Riepilogo Annuale'!L29 -> 0 | M29: ='Riepilogo Annuale'!M29 -> 0 | N29: ='Riepilogo Annuale'!N29 -> 61 | O29: ='Riepilogo Annuale'!O29 -> 123
A30: ='Riepilogo Annuale'!A30 -> 0.3183758684 | B30: ='Riepilogo Annuale'!B30 -> 12.30413699 | C30: ='Riepilogo Annuale'!C30 -> 34.89 | D30: ='Riepilogo Annuale'!D30 -> 49.16 | E30: ='Riepilogo Annuale'!E30 -> 844.92 | F30: ='Riepilogo Annuale'!F30 -> 135.34 | G30: ='Riepilogo Annuale'!G30 -> 69.68 | H30: ='Riepilogo Annuale'!H30 -> 921.57 | I30: ='Riepilogo Annuale'!I30 -> 38.88 | J30: ='Riepilogo Annuale'!J30 -> 106.03 | K30: ='Riepilogo Annuale'!K30 -> 884.43 | L30: ='Riepilogo Annuale'!L30 -> 38.88 | M30: ='Riepilogo Annuale'!M30 -> 49.98 | N30: ='Riepilogo Annuale'!N30 -> 1317.25 | O30: ='Riepilogo Annuale'!O30 -> 4491.01
A32: ='Riepilogo Annuale'!A32 -> Benzina e A.T.M. | C32: ='Riepilogo Annuale'!C32 -> 129.83 | D32: ='Riepilogo Annuale'!D32 -> 60 | E32: ='Riepilogo Annuale'!E32 -> 115 | F32: ='Riepilogo Annuale'!F32 -> 130 | G32: ='Riepilogo Annuale'!G32 -> 50 | H32: ='Riepilogo Annuale'!H32 -> 74.8 | I32: ='Riepilogo Annuale'!I32 -> 189.8 | J32: ='Riepilogo Annuale'!J32 -> 10 | K32: ='Riepilogo Annuale'!K32 -> 80 | L32: ='Riepilogo Annuale'!L32 -> 50 | M32: ='Riepilogo Annuale'!M32 -> 50 | N32: ='Riepilogo Annuale'!N32 -> 100 | O32: ='Riepilogo Annuale'!O32 -> 1039.43
A33: ='Riepilogo Annuale'!A33 -> Spese e manutenzione automobile | C33: ='Riepilogo Annuale'!C33 -> 0 | D33: ='Riepilogo Annuale'!D33 -> 379.81 | E33: ='Riepilogo Annuale'!E33 -> 0 | F33: ='Riepilogo Annuale'!F33 -> 0 | G33: ='Riepilogo Annuale'!G33 -> 100 | H33: ='Riepilogo Annuale'!H33 -> 0 | I33: ='Riepilogo Annuale'!I33 -> 0 | J33: ='Riepilogo Annuale'!J33 -> 74.9 | K33: ='Riepilogo Annuale'!K33 -> 210 | L33: ='Riepilogo Annuale'!L33 -> 0 | M33: ='Riepilogo Annuale'!M33 -> 0 | N33: ='Riepilogo Annuale'!N33 -> 0 | O33: ='Riepilogo Annuale'!O33 -> 764.71
A34: ='Riepilogo Annuale'!A34 -> Spese ripar. casa (idraulico, ...) | C34: ='Riepilogo Annuale'!C34 -> 0 | D34: ='Riepilogo Annuale'!D34 -> 0 | E34: ='Riepilogo Annuale'!E34 -> 0 | F34: ='Riepilogo Annuale'!F34 -> 0 | G34: ='Riepilogo Annuale'!G34 -> 60 | H34: ='Riepilogo Annuale'!H34 -> 0 | I34: ='Riepilogo Annuale'!I34 -> 0 | J34: ='Riepilogo Annuale'!J34 -> 0 | K34: ='Riepilogo Annuale'!K34 -> 0 | L34: ='Riepilogo Annuale'!L34 -> 240 | M34: ='Riepilogo Annuale'!M34 -> 0 | N34: ='Riepilogo Annuale'!N34 -> 0 | O34: ='Riepilogo Annuale'!O34 -> 300
A35: ='Riepilogo Annuale'!A35 -> 0 | C35: ='Riepilogo Annuale'!C35 -> 0 | D35: ='Riepilogo Annuale'!D35 -> 0 | E35: ='Riepilogo Annuale'!E35 -> 0 | F35: ='Riepilogo Annuale'!F35 -> 0 | G35: ='Riepilogo Annuale'!G35 -> 0 | H35: ='Riepilogo Annuale'!H35 -> 0 | I35: ='Riepilogo Annuale'!I35 -> 0 | J35: ='Riepilogo Annuale'!J35 -> 0 | K35: ='Riepilogo Annuale'!K35 -> 0 | L35: ='Riepilogo Annuale'!L35 -> 0 | M35: ='Riepilogo Annuale'!M35 -> 0 | N35: ='Riepilogo Annuale'!N35 -> 0 | O35: ='Riepilogo Annuale'!O35 -> 0
A36: ='Riepilogo Annuale'!A36 -> Altro | C36: ='Riepilogo Annuale'!C36 -> 0 | D36: ='Riepilogo Annuale'!D36 -> 0 | E36: ='Riepilogo Annuale'!E36 -> 6.5 | F36: ='Riepilogo Annuale'!F36 -> 0 | G36: ='Riepilogo Annuale'!G36 -> 0 | H36: ='Riepilogo Annuale'!H36 -> 0 | I36: ='Riepilogo Annuale'!I36 -> 0 | J36: ='Riepilogo Annuale'!J36 -> 0 | K36: ='Riepilogo Annuale'!K36 -> 0 | L36: ='Riepilogo Annuale'!L36 -> 0 | M36: ='Riepilogo Annuale'!M36 -> 0 | N36: ='Riepilogo Annuale'!N36 -> 0 | O36: ='Riepilogo Annuale'!O36 -> 6.5
A37: ='Riepilogo Annuale'!A37 -> 0.149627109 | B37: ='Riepilogo Annuale'!B37 -> 5.782575342 | C37: ='Riepilogo Annuale'!C37 -> 129.83 | D37: ='Riepilogo Annuale'!D37 -> 439.81 | E37: ='Riepilogo Annuale'!E37 -> 121.5 | F37: ='Riepilogo Annuale'!F37 -> 130 | G37: ='Riepilogo Annuale'!G37 -> 210 | H37: ='Riepilogo Annuale'!H37 -> 74.8 | I37: ='Riepilogo Annuale'!I37 -> 189.8 | J37: ='Riepilogo Annuale'!J37 -> 84.9 | K37: ='Riepilogo Annuale'!K37 -> 290 | L37: ='Riepilogo Annuale'!L37 -> 290 | M37: ='Riepilogo Annuale'!M37 -> 50 | N37: ='Riepilogo Annuale'!N37 -> 100 | O37: ='Riepilogo Annuale'!O37 -> 2110.64
A39: ='Riepilogo Annuale'!A39:B39 -> SPESA MENSILE | C39: ='Riepilogo Annuale'!C39 -> 1010.66 | D39: ='Riepilogo Annuale'!D39 -> 823.9 | E39: ='Riepilogo Annuale'!E39 -> 1356.3 | F39: ='Riepilogo Annuale'!F39 -> 1182.42 | G39: ='Riepilogo Annuale'!G39 -> 1023.8 | H39: ='Riepilogo Annuale'!H39 -> 2767.65 | I39: ='Riepilogo Annuale'!I39 -> 812.83 | J39: ='Riepilogo Annuale'!J39 -> 897.57 | K39: ='Riepilogo Annuale'!K39 -> 1970.36 | L39: ='Riepilogo Annuale'!L39 -> 731.92 | M39: ='Riepilogo Annuale'!M39 -> 821.4 | N39: ='Riepilogo Annuale'!N39 -> 2260.69 | O39: ='Riepilogo Annuale'!O39 -> 15659.5
A41: ='Riepilogo Annuale'!A41:B41 -> STIPENDIO MENSILE | C41: ='Riepilogo Annuale'!C41 -> 1182 | D41: ='Riepilogo Annuale'!D41 -> 944 | E41: ='Riepilogo Annuale'!E41 -> 1054 | F41: ='Riepilogo Annuale'!F41 -> 1306 | G41: ='Riepilogo Annuale'!G41 -> 1184 | H41: ='Riepilogo Annuale'!H41 -> 1149 | I41: ='Riepilogo Annuale'!I41 -> 1224 | J41: ='Riepilogo Annuale'!J41 -> 1207 | K41: ='Riepilogo Annuale'!K41 -> 1180 | L41: ='Riepilogo Annuale'!L41 -> 1221 | M41: ='Riepilogo Annuale'!M41 -> 1129 | N41: ='Riepilogo Annuale'!N41 -> 1326 | O41: ='Riepilogo Annuale'!O41 -> -1553.5
